Workbook

Sheet READ ME
C3: =Translate!$C$20 -> Select language | D3: English
C5: =Translate!$C$21 -> Read Me Sheet
C10: =Translate!$C$22 -> Market – Market Assessment tool
C12: =Translate!$C$23 -> Introduction
C13: =Translate!$C$24 -> This tool complements the module MARKET in the SPIS Toolbox. The tool serves to determine geophysical parameters highlighted as make or break. If any of the parameters scores a 0, the area is considered to have very poor potential for SPIS. A ‘yes’ from this evaluation allows consideration of other parameters.
C15: =Translate!$C$25 -> Tips & Tricks
C17: =Translate!$C$26 -> ● Make sure that macro is always enabled for the proper functioning of this tool.
C18: =Translate!$C$27 -> ● Only enter values into white (non-coloured) cells.
C19: =Translate!$C$28 -> ● Tool may contain illustrative sample values. Please adjust or remove.
C20: =Translate!$C$29 -> ● This tool contains numerous critical formulas or calculations in colored cells.
C21: =Translate!$C$30 -> ● The sheets in this tool are linked and values are automatically calculated and transferred between the sheets.
C22: =Translate!$C$31 -> ● You can access data sources to get the required information by clicking on the provided links.
C23: =Translate!$C$32 -> ● For the multilanguage option to work properly, do NOT delete sheets.
C24: =Translate!$C$33 -> ● Make sure that this file is always saved as ".xlsm".
C26: =Translate!C34 -> Overview
C27: =Translate!C35 -> This tool comprises the following sheet:
C28: =Translate!$C$8 -> INPUT_Pre-check | D28: =Translate!$C$36 -> Allows the first check for SPIS suitability to proceed with the assessment
C29: =Translate!$C$9 -> INPUT_Weight setting | D29: =Translate!$C$37 -> Provides a description of parameters and allows for adjusting weights
C30: =Translate!$C$10 -> INPUT_Geophysical Parameters | D30: =Translate!$C$38 -> For defining geophysical parameters in the target area
C31: =Translate!$C$11 -> INPUT_Business Conditions | D31: =Translate!$C$39 -> For defining business relevant parameters relevant to the target area
C32: =Translate!$C$12 -> OUTPUT_Result | D32: =Translate!$C$40 -> Shows a graphic overview of the market potential of SPIS within an area
C34: =Translate!$C$41 -> About
C35: =Translate!$C$42 -> Published by: | D35: =Translate!$C$48 -> GIZ & FAO
C36: =Translate!$C$43 -> Responsible: | D36: =Translate!$C$49 -> GIZ project "Water and Energy for Food (WE4F)"
C37: =Translate!$C$44 -> Contact: | D37: we4f@giz.de
C38: =Translate!$C$45 -> Download link: | D38: https://energypedia.info/wiki/Toolbox_on_SPIS
C39: =Translate!$C$46 -> About: | D39: =Translate!$C$50 -> Water and Energy for Food Grand Challenge at:
D40: https://we4f.org/
C41: =Translate!$C$47 -> Version: | D41: =Translate!$C$51 -> 3.0 (June 2021)
C43: =Translate!$C$52 -> The Toolbox on Solar Powered Irrigation Systems (SPIS) is a legacy project of the global initiative Powering Agriculture: An Energy Grand Challenge for Development (PAEGC). In 2012, the United States Agency for International Development (USAID), the Swedish International Development Cooperation Agency (Sida), the German Federal Ministry for Economic Cooperation and Development (BMZ), Duke Energy, and the Overseas Private Investment Corporation (OPIC) combined resources to support new and sustainable approaches to accelerate the development and deployment of clean energy solutions for increasing agriculture productivity. The Toolbox on SPIS has now been embraced for further development by PAEGC's successor program Water and Energy for Food (WE4F). WE4F is a joint international initiative of the European Union (EU), German Federal Ministry for Economic Cooperation and Development (BMZ), the Ministry of Foreign Affairs of the Kingdom of the Netherlands, Sweden through the Swedish International Development Cooperation Agency (Sida), and the U.S. Agency for International Development (USAID). WE4F aims to increase food production along the value chain through a more sustainable and efficient usage of water and/or energy.
C45: =Translate!$C$53 -> The designations employed and the presentation of material in this information product do not imply the expression of any opinion whatsoever on the part of Deutsche Gesellschaft für Internationale Zusammenarbeit (GIZ) GmbH, Food and Agriculture Organization of the United Nations (FAO) or any of the PAEGC Founding Partners concerning the legal or development status of any country, territory, city or area or of its authorities, or concerning the delimitation of its frontiers or boundaries. The mention of specific companies or products of manufacturers, whether or not these have been patented, does not imply that these have been endorsed or recommended by GIZ, FAO, or any of the PAEGC Founding Partners in preference to others of a similar nature that are not mentioned. The views expressed in this information product are those of the author and do not necessarily reflect the views or policies of GIZ, FAO, or any of the PAEGC Founding Partners.
C47: =Translate!$C$54 -> GIZ, FAO and the PAEGC Founding Partners encourage the use, reproduction and dissemination of material in this information product. Except where otherwise indicated, material may be copied, downloaded and printed for private study, research and teaching purposes, or for use in non-commercial products or services, provided that appropriate acknowledgement of GIZ and FAO as the source and copyright holder is given.
C48: =Translate!$C$55 -> © GIZ and FAO, 2021

Sheet INPUT_Pre-check
E2: =Translate!$C$57 -> INPUT - Pre-check
B6: =Translate!$C$58 -> Country: | D6: Select the country of Interest
B7: =Translate!$C$59 -> Specific area of interest:
B8: =Translate!$C$60 -> Assessment date:
B9: =Translate!$C$58 -> Country:
A11: 1 | B11: =Translate!$C$62 -> Critical Geophysical Parameters | O11: =Translate!$C$65 -> Highest Possible Score | P11: =Translate!$C$66 -> Attained Score
O12: 9 | P12: =IF(COUNTIF(S14:S17,0)=0,S14+S15+S16,0) -> 8
B13: =Translate!$C$63 -> Questions | C13: =Translate!$C$64 -> Sample Data Sources | O13: =Translate!$C$67 -> Answer | P13: =Translate!$C$68 -> Suitability | R13: =Translate!$C$315 -> Parameter | S13: =Translate!$C$319 -> Score | T13: =Translate!$C$320 -> Raw Score
A14: a) | B14: =Translate!$C$69 -> What is the major land cover found in the area? | C14: =Translate!$C$88 -> Global Land Cover | O14: Cropland irrigated or post-flooding | P14: =VLOOKUP(O14,'Lists 2'!A:B,2,0) -> Highly Suitable | R14: =Translate!$C$316 -> Land Cover | S14: =IF(P14=Translate!$C$304, "3", IF(P14=Translate!$C$305, "2", IF(P14=Translate!$C$306, "1", "0"))) -> 2 | T14: =IF(COUNTIF(S14:S17,0)=0,S14+S15+S16,0) -> 8
A15: b) | B15: =Translate!$C$70 -> What is the average annual solar irradiation in the area? (kWh/kW peak - PVOUT value) | C15: =Translate!$C$89 -> Global Solar Atlas | O15: Above 1460 | P15: =IF(O15="0 - 948", 'Lists 2'!$B$7, IF(O15="949 - 1094", 'Lists 2'!$B$6, IF(O15="1095 - 1460", 'Lists 2'!$B$5, 'Lists 2'!$B$2))) -> Highly Suitable | R15: =Translate!$C$317 -> Solar Irradiation | S15: =IF(O15='Lists 2'!$H$5, "3", IF(O15="1095 - 1460", "2", IF(O15="949 - 1094", "1", "0"))) -> 3
A16: c) | B16: =IF($D$6=Translate!$C$91,Translate!$C$71 & " …." &Translate!$C$72,Translate!$C$71 & " " & $D$6 &Translate!$C$72) -> What are the average monthly temperature and precipitation values in ….? | C16: =Translate!$C$90 -> AQUASTAT - Climate Information Tool | P16: =IF(O19=0, Translate!$C$310,IF(O19=1,'Lists 2'!$B$6,IF(O19=2,'Lists 2'!$B$5,'Lists 2'!$B$2))) -> Highly Suitable | R16: =Translate!$C$318 -> Precipitation | S16: =IF(P16='Lists 2'!$B$5,2,IF(P16='Lists 2'!$B$6,1,IF(P16=Translate!$C$310,0,3))) -> 3
C17: =Translate!$C$76 -> Jan | D17: =Translate!$C$77 -> Feb | E17: =Translate!$C$78 -> Mar | F17: =Translate!$C$79 -> Apr | G17: =Translate!$C80 -> May | H17: =Translate!$C81 -> Jun | I17: =Translate!$C82 -> Jul | J17: =Translate!$C83 -> Aug | K17: =Translate!$C84 -> Sep | L17: =Translate!$C85 -> Oct | M17: =Translate!$C86 -> Nov | N17: =Translate!$C87 -> Dec | O17: =Translate!$C311 -> Amount of arid months:
B19: =Translate!$C$73 -> Monthly average temperature (°C) | C19: 23 | D19: 23 | E19: 23 | F19: 22 | G19: 25 | H19: 18 | I19: 17 | J19: 19.5 | K19: 22.9 | L19: 24.9 | M19: 24.4 | N19: 23.3 | O19: =COUNTIF(C21:N21,">0") -> 5 | R19: =Translate!$C$321 -> Tavg | S19: =AVERAGE(C19:N19) -> 22.16666667 | T19: TSD | U19: =STDEV(C19:N19) -> 2.621357502
B20: =Translate!$C$74 -> Monthly average precipitation (mm) | C20: 221 | D20: 195 | E20: 157 | F20: 43 | G20: 6 | H20: 0 | I20: 0 | J20: 0 | K20: 3.6 | L20: 27.4 | M20: 107.6 | N20: 214.8 | R20: =Translate!$C$322 -> Pavg | S20: =AVERAGE(C20:N20) -> 81.28333333 | T20: PSD | U20: =STDEV(C20:N20) -> 91.74904343
B21: =Translate!$C$75 -> Aridity Index (Harouna & Carlson 1994) | C21: =((C19-$S$19)/$U$19)-((C20-$S$20)/$U$20) -> -1.20491189 | D21: =((D19-$S$19)/$U$19)-((D20-$S$20)/$U$20) -> -0.9215301891 | E21: -0.5073569336 | F21: 0.3536811007 | G21: 1.901400256 | H21: -0.703576091 | I21: -1.085057823 | J21: -0.131353493 | K21: 1.12644693 | L21: 1.630007144 | M21: 0.5651427233 | N21: -1.022891734 | O21: http://agron-www.agron.iastate.edu/courses/Agron541/classes/541/lesson04a/4a.3.html
B22: =IF(P12=0,Translate!$C$312,Translate!$C$313) -> Proceed to "INPUT_Weight Setting"
F28: ='Lists 2'!$B$7 -> Not Suitable
F29: ='Lists 2'!$B$6 -> Marginally Suitable
F30: ='Lists 2'!$B$5 -> Moderately Suitable
F31: ='Lists 2'!$B$2 -> Highly Suitable

Sheet INPUT_Weight setting
D2: =Translate!$C$324 -> INPUT - Weight setting
B6: =Translate!$C$325 -> Geophysical Parameters:
B7: =Translate!$C$326 -> Non-critical Geophysical Parameters
B8: =Translate!$C$327 -> Additional parameters that are key to the market assessment for SPIS. These do not affect the general viability of SPIS; they affect the success of SPIS adoption in a region as per prevailing geophysical conditions (e.g. groundwater table, frost occurrence, topography, agricultural production farming system, etc.).
B9: Important
B10: =H40 -> 0.1
B12: =Translate!$C$328 -> Business Conditions:
B13: =Translate!$C$329 -> 1. Government Interventions | D13: =Translate!$C$331 -> 2. Development Organizations Interventions | F13: =Translate!$C$333 -> 3. Financing
B14: =Translate!$C$330 -> Evaluation of government interventions as a business environment parameter for SPIS, looking at policies, rules, and regulations that govern the irrigation and solar sectors. | D14: =Translate!$C$332 -> This section evaluates interventions by development organizations that can present a significant influence on the adoption of SPIS within a country or region. | F14: =Translate!$C$334 -> The parameter looks at the ability of end-users to meet the high capital cost for SPIS including financial support from the government, development agencies, and private sector.
B15: Important | D15: Important | F15: Important
B16: =H31 -> 0.1 | D16: =H32 -> 0.1 | F16: =H33 -> 0.1
B18: =Translate!$C$335 -> 4. Availability and Cost of Alternatives | D18: =Translate!$C$337 -> 5. Technical Capacity | F18: =Translate!$C$339 -> 6. Awareness of SPIS Technologies
B19: =Translate!$C$336 -> Criterion considers the availability and cost of competing sources of power for irrigation systems. | D19: =Translate!$C$338 -> This section evaluates the in-country capacity of personnel to design, implement and maintain SPIS systems. | F19: =Translate!$C$340 -> Parameter assesses the general awareness of solar technologies such as solar lighting and heating systems, and irrigation systems such as pumps in the country.
B20: Important | D20: Important | F20: Important
B21: =H34 -> 0.1 | D21: =H35 -> 0.1 | F21: =H36 -> 0.1
B23: =Translate!$C$341 -> 7. Significance of Agriculture to Local Economy | D23: =Translate!$C$343 -> 8. Land Tenure | F23: =Translate!$C$345 -> 9. Transport and Communication Infrastructure
B24: =Translate!$C$342 -> This section evaluates the importance of agriculture to the target area's economy by assessing its contribution to GDP and employment along with the proportion of arable land used for agriculture. | D24: =Translate!$C$344 -> This parameter seeks an understanding of land tenure rights which can hinder or promote the adoption of SPIS. Not only do tenure rights inform investment security, but may also serve as collateral for loans. | F24: =Translate!$C$346 -> This section evaluates the availability of infrastructure and communication systems such as roads and mobile networks in enabling supply chains and easing the movement of people and goods.
B25: Important | D25: Important | F25: Important
B26: =H37 -> 0.1 | D26: =H38 -> 0.1 | F26: =H39 -> 0.1
F30: =Translate!$C$347 -> Parameter | G30: =Translate!$C$365 -> Weight setting | H30: =Translate!$C$366 -> Percentage | I30: =Translate!$C$367 -> Score
F31: =Translate!$C$348 -> Government Interventions | G31: =B15 -> Important | H31: =I31/$I$41 -> 0.1 | I31: =VLOOKUP(G31,'Lists 2'!$C$2:$D$7,2,FALSE) -> 6
F32: =Translate!$C$349 -> Development Organizations Interventions | G32: =D15 -> Important | H32: =I32/$I$41 -> 0.1 | I32: =VLOOKUP(G32,'Lists 2'!$C$2:$D$7,2,FALSE) -> 6
F33: =Translate!$C$350 -> Financing | G33: =F15 -> Important | H33: =I33/$I$41 -> 0.1 | I33: =VLOOKUP(G33,'Lists 2'!$C$2:$D$7,2,FALSE) -> 6
F34: =Translate!$C$351 -> Availability and Cost of Alternatives | G34: =B20 -> Important | H34: 0.1 | I34: =VLOOKUP(G34,'Lists 2'!$C$2:$D$7,2,FALSE) -> 6
F35: =Translate!$C$352 -> Technical Capacity | G35: =D20 -> Important | H35: 0.1 | I35: =VLOOKUP(G35,'Lists 2'!$C$2:$D$7,2,FALSE) -> 6
D36: =Translate!$C$353 -> Awareness of Solar PV and Irrigation Technologies | G36: =F20 -> Important | H36: 0.1 | I36: =VLOOKUP(G36,'Lists 2'!$C$2:$D$7,2,FALSE) -> 6
F37: =Translate!$C$354 -> Significance of Agriculture to the Local Economy | G37: =B25 -> Important | H37: 0.1 | I37: =VLOOKUP(G37,'Lists 2'!$C$2:$D$7,2,FALSE) -> 6
F38: =Translate!$C$355 -> Land Tenure | G38: =D25 -> Important | H38: 0.1 | I38: =VLOOKUP(G38,'Lists 2'!$C$2:$D$7,2,FALSE) -> 6
F39: =Translate!$C$356 -> Transport and Communication Infrastructure | G39: =F25 -> Important | H39: 0.1 | I39: =VLOOKUP(G39,'Lists 2'!$C$2:$D$7,2,FALSE) -> 6
F40: =Translate!$C$357 -> Non-critical Geophysical Parameters | G40: =B9 -> Important | H40: 0.1 | I40: =VLOOKUP(G40,'Lists 2'!$C$2:$D$7,2,FALSE) -> 6
F41: =Translate!$C$358 -> Total | H41: =SUM(H31:H40) -> 1 | I41: =SUM(I31:I40) -> 60

Sheet INPUT_Geophysical Parameters
C2: =Translate!$C$369 -> INPUT - Geophysical Parameters
A5: 2 | B5: =Translate!$C$370 -> Additional Geophysical Parameters | E5: =Translate!$C$373 -> Highest Possible Score | F5: =Translate!$C$374 -> Attained Score
E6: ='INPUT_Weight setting'!B10 -> 0.1 | F6: =SUM(I8:I11) -> 0.09
B7: =Translate!$C$371 -> Questions | C7: =Translate!$C$372 -> Sample Data Sources | E7: =Translate!$C$375 -> Answer | F7: =Translate!$C$376 -> Relevance | H7: =Translate!$C$403 -> Weight | I7: =Translate!$C$404 -> Attained Score | J7: =Translate!$C$405 -> Raw Score
A8: a) | B8: =Translate!$C$377 -> What is the average groundwater table earmarked for SPIS? | C8: =Translate!$C$381 -> Estimated depth of groundwater resources | E8: Up to 7 m | F8: Inconsequential | H8: =E6/COUNTA(B8,B9,B10,B11) -> 0.025 | I8: =(J8*H8) -> 0.025 | J8: =VLOOKUP(E8,Table5[],2,FALSE)*VLOOKUP(F8,Table1[],2,FALSE)/6 -> 1
A9: b) | B9: =Translate!$C$378 -> What is the minimum annual ambient temperature and in particular the frequency of frost? | C9: =Translate!$C$382 -> AQUASTAT - Climate Information Tool | E9: 1 °C to 30 °C | F9: Inconsequential | H9: =(E6/COUNTA(B8,B9,B10,B11)) -> 0.025 | I9: =(J9*H9) -> 0.025 | J9: =IF(E9='Lists 2'!$Q$3,(VLOOKUP(F9,Table1[],2,FALSE))/6,(VLOOKUP(F9,Table1[],3,FALSE))/6) -> 1
A10: c) | B10: =Translate!$C$379 -> What is the general topography of the area considered? | C10: =Translate!$C$383 -> What is the slope of the area? | E10: Flat | F10: Inconsequential | H10: =(E6/COUNTA(B8,B9,B10,B11)) -> 0.025 | I10: =(J10*H10) -> 0.025 | J10: =VLOOKUP(E10,Table6[],2,FALSE)*VLOOKUP(F10,Table1[],2,FALSE)/6 -> 1
A11: d) | B11: =Translate!$C$380 -> What is the predominant type of agricultural production system? | C11: =Translate!$C$384 -> Farming Systems Maps FAO | E11: Seasonal Crops | F11: Inconsequential | H11: =(E6/COUNTA(B8,B9,B10,B11)) -> 0.025 | I11: =(J11*H11) -> 0.015 | J11: =VLOOKUP(E11,Table2[],2,FALSE)*VLOOKUP(F11,Table1[],2,FALSE)/6 -> 0.6
B12: =IF((Calculations!G4)<(50 %), Translate!$C$402, "") -> 
C14: =Translate!$C$628 -> Got more recent data sources?
C15: =Translate!$C$629 -> PLEASE SHARE
C16: =Translate!$C$630 -> and help us to improve our tools.
C17: =Translate!$C$631 -> Thank you.

Sheet INPUT_Business Conditions
C2: =Translate!$C$407 -> INPUT - Business Conditions Parameters
A5: 1 | B5: =Translate!$C$408 -> Government Interventions | E5: =Translate!$C$411 -> Highest Possible Score | F5: =Translate!$C$412 -> Attained Score
E6: ='INPUT_Weight setting'!B16 -> 0.1 | F6: =IF(OR(AND(E8="No",F8="Critical"),AND(E11="No",F11="Critical"),AND(E12="No",F12="Critical")),0,SUM(I8:I12)) -> 0.1
B7: =Translate!$C$409 -> Questions | C7: =Translate!$C$410 -> Sample Data Sources | E7: =Translate!$C$413 -> Answer | F7: =Translate!$C$414 -> Relevance | H7: =Translate!$C$430 -> Weight | I7: =Translate!$C$431 -> Attained Score | J7: =Translate!$C$432 -> Raw Score
A8: a) | B8: =IF('INPUT_Pre-check'!$D$6 =Translate!$C$91,Translate!$C$415 &" "& "….." &Translate!$C$416,Translate!$C$415 &" "& 'INPUT_Pre-check'!$D$6 &Translate!$C$416) -> Are there government, national and local policies and laws promoting solar and irrigation equipment in …..? | C8: =Translate!$C$417 -> • Government irrigation and/or solar policies, laws, bills, acts, sector development plans • Licensing of solar technicians, suppliers and or contractor companies • Government tax regulation such as duty and VAT exemptions | D8: =Translate!$C$418 -> Clean energy development policies | E8: Yes | F8: Inconsequential | H8: =E6/COUNTA(B8:B12) -> 0.03333333333 | I8: =(J8*H8) -> 0.03333333333 | J8: =IF(E8='Lists 2'!$K$11,VLOOKUP('INPUT_Business Conditions'!F8,'Lists 2'!$M$11:$O$15,2,FALSE)/6,VLOOKUP('INPUT_Business Conditions'!F8,'Lists 2'!$M$11:$O$15,3,FALSE)/6) -> 1
D9: =Translate!$C$419 -> Renewable Energy Targets and Policies, 2020: Table 6, Pg. 84
D10: =Translate!$C$420 -> Asia Pacific countries policy documents
A11: b) | B11: =IF('INPUT_Pre-check'!$D$6 =Translate!$C$91,Translate!$C$421 &" "& "….." & " "& Translate!$C$422,Translate!$C$421 &" "& 'INPUT_Pre-check'!$D$6 &" "&Translate!$C$422) -> Are there government programs in ….. promoting SPIS devices? | C11: =Translate!$C$423 -> • Irrigation and solar programs supported by government resources | E11: Yes | F11: Inconsequential | H11: =E6/COUNTA(B8:B12) -> 0.03333333333 | I11: =(J11*H11) -> 0.03333333333 | J11: =IF(E11='Lists 2'!$K$11,VLOOKUP('INPUT_Business Conditions'!F11,'Lists 2'!$M$11:$O$15,2,FALSE)/6,VLOOKUP('INPUT_Business Conditions'!F11,'Lists 2'!$M$11:$O$15,3,FALSE)/6) -> 1
A12: c) | B12: =IF('INPUT_Pre-check'!$D$6 =Translate!$C$91,Translate!$C$424 &" "& "….." &Translate!$C$416,Translate!$C$424 &" "& 'INPUT_Pre-check'!$D$6 &Translate!$C$416) -> Are there relevant government ministries and/bodies providing support to the sector in …..? | C12: =Translate!$C$425 -> • Agriculture and energy ministries with engagement in SPIS sector • Government irrigation organizations, boards, groups • Government organizations providing SPIS related information • Government quality and standards regulation and enforcement | D12: =Translate!$C$426 -> Stand alone systems regulations and incentives | E12: Yes | F12: Inconsequential | H12: =E6/COUNTA(B8:B12) -> 0.03333333333 | I12: =(J12*H12) -> 0.03333333333 | J12: =IF(E12='Lists 2'!$K$11,VLOOKUP('INPUT_Business Conditions'!F12,'Lists 2'!$M$11:$O$15,2,FALSE)/6,VLOOKUP('INPUT_Business Conditions'!F12,'Lists 2'!$M$11:$O$15,3,FALSE)/6) -> 1
A14: 2 | B14: =Translate!$C$433 -> Development Organizations Interventions | E14: =Translate!$C$411 -> Highest Possible Score | F14: =Translate!$C$412 -> Attained Score
E15: ='INPUT_Weight setting'!D16 -> 0.1 | F15: =IF(OR(AND(E17="No",F17="Critical"),AND(E18="No",F18="Critical")),0,SUM(I17:I20)) -> 0.1
B16: =Translate!$C$409 -> Questions | C16: =Translate!$C$410 -> Sample Data Sources | E16: =Translate!$C$413 -> Answer | F16: =Translate!$C$414 -> Relevance | H16: =Translate!$C$430 -> Weight | I16: =Translate!$C$431 -> Attained Score | J16: =Translate!$C$432 -> Raw Score
A17: a) | B17: =IF('INPUT_Pre-check'!$D$6 =Translate!$C$91,Translate!$C$434 &" "& "….." & " "& Translate!$C$435,Translate!$C$434 &" "& 'INPUT_Pre-check'!$D$6 &" "&Translate!$C$435) -> Are there national programs provided in ….. by non-government institutions that promote the adoption of irrigation? | C17: List of possible* development agencies and multilateral organizations: | E17: Yes | F17: Inconsequential | H17: =E15/(COUNTA(B17:B20)) -> 0.05 | I17: =(J17*H17) -> 0.05 | J17: =IF(E17='Lists 2'!$K$11,VLOOKUP(F17,'Lists 2'!$M$11:$O$15,2,FALSE)/6,VLOOKUP(F17,'Lists 2'!$M$11:$O$15,3,FALSE)/6) -> 1
A18: b) | B18: =IF('INPUT_Pre-check'!$D$6 =Translate!$C$91,Translate!$C$436 &" "& "….." & " "& Translate!$C$437,Translate!$C$436 &" "& 'INPUT_Pre-check'!$D$6 &" "&Translate!$C$437) -> Are there national programs provided in ….. by non-government institutions specifically promoting the adoption of SPIS devices? | C18: List of possible* facilities and funds: | E18: Yes | F18: Inconsequential | H18: =E15/COUNTA(B17:B20) -> 0.05 | I18: =(J18*H18) -> 0.05 | J18: =IF(E18='Lists 2'!$K$11,VLOOKUP(F18,'Lists 2'!$M$11:$O$15,2,FALSE)/6,VLOOKUP(F18,'Lists 2'!$M$11:$O$15,3,FALSE)/6) -> 1
C19: List of possible* research centers and other NGOs:
C20: =Translate!$C$469 -> * List is not exhaustive
A22: 3 | B22: =Translate!$C$470 -> Financing | E22: =Translate!$C$411 -> Highest Possible Score | F22: =Translate!$C$412 -> Attained Score
E23: ='INPUT_Weight setting'!F16 -> 0.1 | F23: =IF(OR(AND(E26=1,F26="Critical"),AND(E33="No",F33="Critical"), AND(E29=0,F29="Critical"), AND(E30=0,F30="Critical")),0,SUM(I25,I28,I33)) -> 0.1
B24: =Translate!$C$409 -> Questions | C24: =Translate!$C$410 -> Sample Data Sources | E24: =Translate!$C$413 -> Answer | F24: =Translate!$C$414 -> Relevance | H24: =Translate!$C$430 -> Weight | I24: =Translate!$C$431 -> Attained Score | J24: =Translate!$C$432 -> Raw Score
A25: a) | B25: =Translate!$C$471 -> End users' financial ability | H25: =E23/COUNTA(B25,B28,B33) -> 0.03333333333 | I25: =I26+I27 -> 0.03333333333
A26: i) | B26: =IF('INPUT_Pre-check'!$D$6 =Translate!$C$91,Translate!$C$472 &" "& "….." & " "& Translate!$C$473,Translate!$C$472 &" "& 'INPUT_Pre-check'!$D$6 &" "&Translate!$C$473) -> What proportion of the rural population in ….. is poor according to the Multidimentional Poverty Index (MPI)? | C26: =Translate!$C$475 -> OPHI Global MPI Interactive Databank: Population in multidimensional poverty (H) (%), Rural MPI Poor | E26: 0.2 | F26: Inconsequential | H26: =H25/COUNTA(B26:B27) -> 0.01666666667 | I26: =(H26*J26) -> 0.01666666667 | J26: =IF(F26='Lists 2'!$M$2,1,(1-E26)) -> 1
A27: ii) | B27: =IF('INPUT_Pre-check'!$D$6 =Translate!$C$91,Translate!$C$474 &" "& "….." &Translate!$C$416,Translate!$C$474 &" "& 'INPUT_Pre-check'!$D$6 &Translate!$C$416) -> What is the Gross National Income (GNI) per capita value of …..? | C27: =Translate!$C$476 -> World Bank data: GNI per capita, Atlas method (current US$) 2020 | E27: Low income ($1,005 or less) | F27: Inconsequential | H27: =H25/COUNTA(B26:B27) -> 0.01666666667 | I27: =(H27*J27) -> 0.01666666667 | J27: =(IF(F27='Lists 2'!$M$2,5,VLOOKUP(E27,Table11[],2,FALSE)))/5 -> 1
A28: b) | B28: =Translate!$C$481 -> Availability of financial institution support | H28: =E23/COUNTA(B25,B28,B33) -> 0.03333333333 | I28: =I29+I30+I32 -> 0.03333333333
A29: i) | B29: =IF('INPUT_Pre-check'!$D$6 =Translate!$C$91,Translate!$C$482 &" "& "….." & " "& Translate!$C$483,Translate!$C$482 &" "& 'INPUT_Pre-check'!$D$6 &" "&Translate!$C$483) -> What proportion of the population above the age of 15 in ….. own a financial account? | C29: =Translate!$C$486 -> i) Account (% age 15+) based on country ii) Formal borrowing (% age 15+) based on country | D29: =Translate!$C$487 -> World Bank, Financial Inclusion Data | E29: 0.3 | F29: Inconsequential | H29: =H28/COUNTA(B29:B30,B32) -> 0.01111111111 | I29: =H29*J29 -> 0.01111111111 | J29: =IF(F29='Lists 2'!$M$2,1,E29) -> 1
A30: ii) | B30: =IF('INPUT_Pre-check'!$D$6 =Translate!$C$91,Translate!$C$484 &" "& "….." & " "& Translate!$C$485,Translate!$C$484 &" "& 'INPUT_Pre-check'!$D$6 &" "&Translate!$C$485) -> What is the proportion of the population above the age of 15 in ….. which borrowed from a financial institution in the given year*? | E30: 0.2 | F30: Inconsequential | H30: =H28/COUNTA(B29:B30,B32) -> 0.01111111111 | I30: =H30*J30 -> 0.01111111111 | J30: =IF(F30='Lists 2'!$M$2,1,E30) -> 1
B31: =Translate!$C$488 -> * given year is the most recent year Data is available
A32: iii) | B32: =IF('INPUT_Pre-check'!$D$6 =Translate!$C$91,Translate!$C$489 &" "& "….." & " "& Translate!$C$490,Translate!$C$489 &" "& 'INPUT_Pre-check'!$D$6 &" "&Translate!$C$490) -> What is the ranking of ….. in the ease of getting credit? | C32: =Translate!$C$492 -> World Bank Ease of doing Business 2017 | E32: 77 | F32: Inconsequential | H32: =H28/COUNTA(B29:B30,B32) -> 0.01111111111 | I32: =(H32*J32) -> 0.01111111111 | J32: =IF(F32='Lists 2'!$M$2,186,(186-E32))/186 -> 1
A33: c) | B33: =IF('INPUT_Pre-check'!$D$6 =Translate!$C$91,Translate!$C$491 &" "& "….." &Translate!$C$416,Translate!$C$491 &" "& 'INPUT_Pre-check'!$D$6 &Translate!$C$416) -> Are there any government economic incentives affecting the adoption of SPIS devices in …..? | C33: =Translate!$C$493 -> • Government tax exemptions, subsidies, rebates, credits etc. given to customers of SPIS products, suppliers or other intermediaries such as financiers | E33: Yes | F33: Inconsequential | H33: =E23/COUNTA(B25,B28,B33) -> 0.03333333333 | I33: =H33*J33 -> 0.03333333333 | J33: =IF(E33='Lists 2'!$K$11,VLOOKUP(F33,'Lists 2'!$M$11:$O$15,2,FALSE)/6,VLOOKUP(F33,'Lists 2'!$M$11:$O$15,3,FALSE)/6) -> 1
A35: 4 | B35: =Translate!C495 -> Availability and cost of alternative sources of power for pumping | E35: =Translate!$C$411 -> Highest Possible Score | F35: =Translate!$C$412 -> Attained Score
E36: ='INPUT_Weight setting'!B21 -> 0.1 | F36: =IF(OR(AND(E39="Yes",F39="Critical"),AND(E40="Yes",F40="Critical"),AND(E47="Yes",F47="Critical"),AND(E48="Yes",F48="Critical")),0,SUM(I38,I46,I49)) -> 0.008333333333
B37: =Translate!$C$409 -> Questions | C37: =Translate!$C$410 -> Sample Data Sources | E37: =Translate!$C$413 -> Answer | F37: =Translate!$C$414 -> Relevance | H37: =Translate!$C$430 -> Weight | I37: =Translate!$C$431 -> Attained Score | J37: =Translate!$C$432 -> Raw Score
A38: a) | B38: =Translate!$C$496 -> Availability of competitive alternative power sources | H38: =E36/COUNTA(B38,B46,B49) -> 0.03333333333 | I38: =I39+I40+I45 -> 0.008333333333
A39: i) | B39: =IF('INPUT_Pre-check'!$D$6 =Translate!$C$91,Translate!$C$497 &" "& "….." & " "& Translate!$C$498,Translate!$C$497 &" "& 'INPUT_Pre-check'!$D$6 &" "&Translate!$C$498) -> Does ….. have fossil fuel resources that it exploits? | C39: =Translate!$C$502 -> National fossil fuel reserves | E39: Yes | F39: Inconsequential | H39: =H38/(COUNTA(B39:B45)-1) -> 0.01666666667 | I39: =H39*J39 -> 0 | J39: =IF(E39='Lists 2'!$K$12,IF(F39='Lists 2'!$Q$12,1,IF(F39='Lists 2'!$Q$11,0.5)),0) -> 0
A40: ii) | B40: =IF('INPUT_Pre-check'!$D$6 =Translate!$C$91,Translate!$C$499 &" "& "….." & " "& Translate!$C$500,Translate!$C$499 &" "& 'INPUT_Pre-check'!$D$6 &" "&Translate!$C$500) -> Is the area of interest in close proximity (within 5 km of a grid access point) to the grid or is the rural electrification rate of ….. greater than 80%? | C40: =Translate!$C$503 -> African grid | D40: =Translate!$C$507 -> Access to electricity, the rural electrification rate | E40: Yes | F40: Inconsequential | H40: =H38/((COUNTA(B39:B45)-1)*2) -> 0.008333333333 | I40: =H40*J40 -> 0 | J40: =IF(E40='Lists 2'!$K$12,IF(F40='Lists 2'!$Q$12,1,IF(F40='Lists 2'!$Q$11,0.5)),0) -> 0
C41: =Translate!$C$504 -> European grid
C42: =Translate!$C$505 -> USA grid | D42: =Translate!$C$508 -> Tracking SDG 7
C43: =Translate!$C$506 -> Australian grid | D43: =Translate!$C$509 -> Grid maps
C44: =Translate!$C$510 -> For better accuracy use country-specific grid data
A45: iii) | B45: =IF('INPUT_Pre-check'!$D$6 =Translate!$C$91,Translate!$C$501 &" "& "….." &Translate!$C$416,Translate!$C$501 &" "& 'INPUT_Pre-check'!$D$6 &Translate!$C$416) -> What is the frequency of power outages in the area of interest or in …..? | C45: =Translate!$C$511 -> • Area of interest local electricity supply reliability | D45: =Translate!$C$512 -> Power outages frequency | E45: Low | F45: Inconsequential | H45: =H38/((COUNTA(B39:B45)-1)*2) -> 0.008333333333 | I45: =H45*J45 -> 0.008333333333 | J45: =(IF(F45='Lists 2'!Q12,5,VLOOKUP(E45,Table12[],2,FALSE)))/5 -> 1
A46: b) | B46: =Translate!$C$513 -> Subsidies | H46: =E36/COUNTA(B38,B46,B49) -> 0.03333333333 | I46: =I47+I48 -> 0
A47: i) | B47: =IF('INPUT_Pre-check'!$D$6 =Translate!$C$91,Translate!$C$514 &" "& "….." & " "& Translate!$C$515,Translate!$C$514 &" "& 'INPUT_Pre-check'!$D$6 &" "&Translate!$C$515) -> Is there a grid subsidy in ….. or in the area of interest including for the cost of electricity and/or connection fee to the grid? | C47: =Translate!$C$518 -> • Area of interest local electricity supply regulation | D47: =Translate!$C$520 -> Presence of national electricity subsidy | E47: Yes | F47: Inconsequential | H47: =H38/COUNTA(B47:B48) -> 0.01666666667 | I47: =H47*J47 -> 0 | J47: =IF(E47='Lists 2'!$K$12,IF(F47='Lists 2'!$Q$12,1,IF(F47='Lists 2'!$Q$11,0.5)),0) -> 0
A48: ii) | B48: =IF('INPUT_Pre-check'!$D$6 =Translate!$C$91,Translate!$C$516 &" "& "….." & " "& Translate!$C$517,Translate!$C$516 &" "& 'INPUT_Pre-check'!$D$6 &" "&Translate!$C$517) -> Is there a fuel subsidy in ….. or in the area of interest? | C48: =Translate!$C$519 -> • Area of interest local fuel supply regulation | D48: =Translate!$C$521 -> Presence of national fuel subsidy (e.g. of diesel and kerosene) | E48: Yes | F48: Inconsequential | H48: =H38/COUNTA(B47:B48) -> 0.01666666667 | I48: =H48*J48 -> 0 | J48: =IF(E48='Lists 2'!$K$12,IF(F48='Lists 2'!$Q$12,1,IF(F48='Lists 2'!$Q$11,0.5)),0) -> 0
A49: c) | B49: =Translate!$C$522 -> Cost comparison | H49: =E36/COUNTA(B38,B46,B49) -> 0.03333333333 | I49: =I50+I51 -> 0
A50: i) | B50: =IF('INPUT_Pre-check'!$D$6 =Translate!$C$91,Translate!$C$523&" "& "….." & " "& Translate!$C$524,Translate!$C$523 &" "& 'INPUT_Pre-check'!$D$6 &" "&Translate!$C$524) -> What is the average electricity retail tariff in USD per kWh for all end users in ….. or in the area of interest? | C50: =Translate!$C$527 -> • Area of interest local electricity supply cost in USD per kWh | D50: =Translate!$C$529 -> Retail electricity tariff (average of all end-users) in USD/kWh | F50: =Translate!$C$531 -> Reference for least penalty will be 1USD/kWh, with the most expensive power, rounded up to the next whole number (0.61) | H50: =H49/COUNTA(B50:B51) -> 0.01666666667 | I50: =H50*J50 -> 0 | J50: =E50 -> 0
A51: ii) | B51: =IF('INPUT_Pre-check'!$D$6 =Translate!$C$91,Translate!$C$525&" "& "….." & " "& Translate!$C$526,Translate!$C$525 &" "& 'INPUT_Pre-check'!$D$6 &" "&Translate!$C$526) -> What is the average retail price for diesel in USD per litre in ….. or in the area of interest? | C51: =Translate!$C$528 -> • Area of interest local average diesel cost in USD/Liter | D51: =Translate!$C$530 -> Diesel prices in USD/Liter | F51: =Translate!$C$532 -> Reference for least penalty will be 3 USD/L the price of Iceland, with the most expensive diesel, rounded up to the next whole number (2.03) | H51: =H49/COUNTA(B50:B51) -> 0.01666666667 | I51: =H51*J51 -> 0 | J51: =E51/3 -> 0
A53: 5 | B53: =Translate!$C$537 -> Technical capacity for SPIS | E53: =Translate!$C$411 -> Highest Possible Score | F53: =Translate!$C$412 -> Attained Score
E54: ='INPUT_Weight setting'!D21 -> 0.1 | F54: =IF(OR(AND(E56="No",F56="Critical"),AND(E57="No",F57="Critical"),AND(E58="No",F58="Critical")),0,SUM(I56:I58)) -> 0.1
B55: =Translate!$C$409 -> Questions | C55: =Translate!$C$410 -> Sample Data Sources | E55: =Translate!$C$413 -> Answer | F55: =Translate!$C$414 -> Relevance | H55: =Translate!$C$430 -> Weight | I55: =Translate!$C$431 -> Attained Score | J55: =Translate!$C$432 -> Raw Score
A56: a) | B56: =IF('INPUT_Pre-check'!$D$6 =Translate!$C$91,Translate!$C$538 &" "& "….." &Translate!$C$416,Translate!$C$538 &" "& 'INPUT_Pre-check'!$D$6 &Translate!$C$416) -> Are there training sessions on solar technologies and applications (design, O&M and repairs) available in …..? | C56: =Translate!$C$542 -> • Solar systems and technologies courses in educational institutions | E56: Yes | F56: Inconsequential | H56: =E54/COUNTA(B56:B58) -> 0.03333333333 | I56: =(J56*H56) -> 0.03333333333 | J56: =IF(E56='Lists 2'!$K$11,VLOOKUP(F56,'Lists 2'!$M$11:$O$15,2,FALSE)/6,VLOOKUP(F56,'Lists 2'!$M$11:$O$15,3,FALSE)/6) -> 1
A57: b) | B57: =IF('INPUT_Pre-check'!$D$6 =Translate!$C$91,Translate!$C$539&" "& "….." & " "& Translate!$C$540,Translate!$C$539 &" "& 'INPUT_Pre-check'!$D$6 &" "&Translate!$C$540) -> Are solar technicians in ….. licensed to carry out their work by the government? | C57: =Translate!$C$543 -> • Government regulation on licensing of solar technicians | E57: Yes | F57: Inconsequential | H57: =E54/COUNTA(B56:B58) -> 0.03333333333 | I57: =(J57*H57) -> 0.03333333333 | J57: =IF(E57='Lists 2'!$K$11,VLOOKUP(F57,'Lists 2'!$M$11:$O$15,2,FALSE)/6,VLOOKUP(F57,'Lists 2'!$M$11:$O$15,3,FALSE)/6) -> 1
A58: c) | B58: =Translate!$C$541 -> Is solar technology part of the curriculum in agricultural courses or programs in agricultural training institutions? | C58: =Translate!$C$544 -> • Solar systems and technologies courses in educational institutions | E58: Yes | F58: Inconsequential | H58: =E54/COUNTA(B56:B58) -> 0.03333333333 | I58: =(J58*H58) -> 0.03333333333 | J58: =IF(E58='Lists 2'!$K$11,VLOOKUP(F58,'Lists 2'!$M$11:$O$15,2,FALSE)/6,VLOOKUP(F58,'Lists 2'!$M$11:$O$15,3,FALSE)/6) -> 1
A60: 6 | B60: =Translate!$C$545 -> Awareness of solar PV and irrigation technologies | E60: =Translate!$C$411 -> Highest Possible Score | F60: =Translate!$C$412 -> Attained Score
E61: ='INPUT_Weight setting'!F21 -> 0.1 | F61: =IF(OR(AND(E64="No",F64="Critical"),AND(E68="No",F68="Critical"),AND(E65="No",F65="Critical"),AND(E69=0,F69="Critical")),0,SUM(I63,I67,)) -> 0.09166666667
B62: =Translate!$C$409 -> Questions | C62: =Translate!$C$410 -> Sample Data Sources | E62: =Translate!$C$413 -> Answer | F62: =Translate!$C$414 -> Relevance | H62: =Translate!$C$430 -> Weight | I62: =Translate!$C$431 -> Attained Score | J62: =Translate!$C$432 -> Raw Score
A63: a) | B63: =Translate!$C$546 -> Solar energy | H63: =E61/COUNTA(B63,B67) -> 0.05 | I63: =I64+I65+I66 -> 0.04166666667
A64: i) | B64: =IF('INPUT_Pre-check'!$D$6 =Translate!$C$91,Translate!$C$547 &" "& "….." &Translate!$C$416,Translate!$C$547 &" "& 'INPUT_Pre-check'!$D$6 &Translate!$C$416) -> Is there a cumulative increase in the installed capacity of solar energy between the years 2012 - 2020 in …..? | C64: =Translate!$C$550 -> IRENA dashboard: Trends in Renewable Energy | E64: Yes | F64: Inconsequential | H64: =H63/COUNTA(B64:B66) -> 0.01666666667 | I64: =(J64*H64) -> 0.01666666667 | J64: =IF(E64='Lists 2'!$K$11,VLOOKUP(F64,'Lists 2'!$M$11:$O$15,2,FALSE)/6,VLOOKUP(F64,'Lists 2'!$M$11:$O$15,3,FALSE)/6) -> 1
A65: ii) | B65: =IF('INPUT_Pre-check'!$D$6 =Translate!$C$91,Translate!$C$548 &" "& "….." &Translate!$C$416,Translate!$C$548 &" "& 'INPUT_Pre-check'!$D$6 &Translate!$C$416) -> Is there a general increase in the annual net additional installed solar energy between the years 2012 - 2020 in …..? | E65: Yes | F65: Inconsequential | H65: =H63/COUNTA(B64:B66) -> 0.01666666667 | I65: =(J65*H65) -> 0.01666666667 | J65: =IF(E65='Lists 2'!$K$11,VLOOKUP(F65,'Lists 2'!$M$11:$O$15,2,FALSE)/6,VLOOKUP(F65,'Lists 2'!$M$11:$O$15,3,FALSE)/6) -> 1
A66: iii) | B66: =Translate!$C$549 -> What is the solar energy proportion of the total installed energy capacity? | E66: 0.05 | F66: Inconsequential | H66: =H63/COUNTA(B64:B66) -> 0.01666666667 | I66: =(J66*H66) -> 0.008333333333 | J66: =IF(F66='Lists 2'!$Q$12,0.5,E66) -> 0.5
A67: b) | B67: =Translate!$C$551 -> Distribution networks for solar and irrigation systems | H67: =E61/COUNTA(B63,B67) -> 0.05 | I67: =I68+I69 -> 0.05
A68: i) | B68: =IF('INPUT_Pre-check'!$D$6 =Translate!$C$91,Translate!$C$552 &" "& "….." &Translate!$C$416,Translate!$C$552&" "& 'INPUT_Pre-check'!$D$6 &Translate!$C$416) -> Is there a presence of suppliers and/or distributors of water pump products from global pump manufacturers in the market in …..? | C68: =Translate!$C$554 -> • List of major water pump products and suppliers | D68: Ebara | E68: Yes | F68: Inconsequential | H68: =H67/COUNTA(B68:B69) -> 0.025 | I68: =(J68*H68) -> 0.025 | J68: =IF(E68='Lists 2'!$K$11,VLOOKUP(F68,'Lists 2'!$M$11:$O$15,2,FALSE)/6,VLOOKUP(F68,'Lists 2'!$M$11:$O$15,3,FALSE)/6) -> 1
A69: ii) | B69: =IF('INPUT_Pre-check'!$D$6 =Translate!$C$91,Translate!$C$553 &" "& "….." &Translate!$C$416,Translate!$C$553&" "& 'INPUT_Pre-check'!$D$6 &Translate!$C$416) -> Is there a presence of suppliers and/or distributors of solar PV systems from global manufacturers in the market in …..? | C69: =Translate!$C$555 -> • List of major solar PV products and suppliers | D69: Ebara | E69: Yes | F69: Inconsequential | H69: =H67/COUNTA(B68:B69) -> 0.025 | I69: =(J69*H69) -> 0.025 | J69: =IF(E69='Lists 2'!$K$11,VLOOKUP(F69,'Lists 2'!$M$11:$O$15,2,FALSE)/6,VLOOKUP(F69,'Lists 2'!$M$11:$O$15,3,FALSE)/6) -> 1
A71: 7 | B71: =Translate!$C$556 -> Significance of agriculture in the local economy | E71: =Translate!$C$411 -> Highest Possible Score | F71: =Translate!$C$412 -> Attained Score
E72: ='INPUT_Weight setting'!B26 -> 0.1 | F72: =IF(OR(AND(E74=0,F74="Critical"),AND(E76=0,F76="Critical"),AND(E77=0,F77="Critical")),0,SUM(I74:I78)) -> 0.05
B73: =Translate!$C$409 -> Questions | C73: =Translate!$C$410 -> Sample Data Sources | E73: =Translate!$C$413 -> Answer | F73: =Translate!$C$414 -> Relevance | H73: =Translate!$C$430 -> Weight | I73: =Translate!$C$431 -> Attained Score | J73: =Translate!$C$432 -> Raw Score
A74: a) | B74: =IF('INPUT_Pre-check'!$D$6 =Translate!$C$91,Translate!$C$557&" "& "….." & " "& Translate!$C$558,Translate!$C$557 &" "& 'INPUT_Pre-check'!$D$6 &" "&Translate!$C$558) -> What proportion of the employed population in ….. are employed in the agricultural sector? | C74: =Translate!$C$566 -> World Bank; Indicators per country in 2019 (most recent year); Employment in agriculture (% of total employment) | F74: Inconsequential | H74: =E72/COUNTA(B74:B78) -> 0.02 | I74: =(J74*H74) -> 0.01 | J74: =IF(F74='Lists 2'!$Q$12,0.5,E74) -> 0.5
A75: b) | B75: =Translate!$C$559 -> What proportion of the population is rural? | C75: =Translate!$C$567 -> World Bank; Rural population (% of total population) in 2020; | F75: Inconsequential | H75: =E72/COUNTA(B74:B78) -> 0.02 | I75: =(J75*H75) -> 0.01 | J75: =IF(F75='Lists 2'!$Q$12,0.5,E75) -> 0.5
A76: c) | B76: =IF('INPUT_Pre-check'!$D$6 =Translate!$C$91,Translate!$C$560&" "& "….." & " "& Translate!$C$561,Translate!$C$560&" "& 'INPUT_Pre-check'!$D$6 &" "&Translate!$C$561) -> What proportion of the GDP in ….. is contributed by its agricultural output? | C76: =Translate!$C$568 -> World Bank; Indicators per country in 2020 (most recent year); Agriculture, value added (% of GDP) | F76: Inconsequential | H76: =E72/COUNTA(B74:B78) -> 0.02 | I76: =(J76*H76) -> 0.01 | J76: =IF(F76='Lists 2'!$Q$12,0.5,E76) -> 0.5
A77: e) | B77: =IF('INPUT_Pre-check'!$D$6 =Translate!$C$91,Translate!$C$562&" "& "….." & " "& Translate!$C$563,Translate!$C$562&" "& 'INPUT_Pre-check'!$D$6 &" "&Translate!$C$563) -> What proportion of the total land in ….. is agricultural land? | C77: =Translate!$C$569 -> World Bank; Indicators per country in 2018 (most recent year); Agricultural land (% of land area) | F77: Inconsequential | H77: =E72/COUNTA(B74:B78) -> 0.02 | I77: =(J77*H77) -> 0.01 | J77: =IF(F77='Lists 2'!$Q$12,0.5,E77) -> 0.5
A78: d) | B78: =IF('INPUT_Pre-check'!$D$6 =Translate!$C$91,Translate!$C$564&" "& "….." & " "& Translate!$C$565,Translate!$C$564&" "& 'INPUT_Pre-check'!$D$6 &" "&Translate!$C$565) -> What percentage of cultivated land area in ….. is already under irrigation? | C78: =Translate!$C$570 -> FAO, Aquastat map, Part of cultivated area under irrigation (%) | F78: Inconsequential | H78: =E72/COUNTA(B74:B78) -> 0.02 | I78: =(J78*H78) -> 0.01 | J78: =IF(F78='Lists 2'!$Q$12,0.5,E78)+IF(E78>E77,"0,25","0") -> 0.5
A80: 8 | B80: =Translate!$C$571 -> Land use rights, ownership and tenure | E80: =Translate!$C$411 -> Highest Possible Score | F80: =Translate!$C$412 -> Attained Score
E81: ='INPUT_Weight setting'!D26 -> 0.1 | F81: =SUM(I83:I87) -> 0.08333333333
B82: =Translate!$C$409 -> Questions | C82: =Translate!$C$410 -> Sample Data Sources | E82: =Translate!$C$413 -> Answer | F82: =Translate!$C$414 -> Relevance | H82: =Translate!$C$430 -> Weight | I82: =Translate!$C$431 -> Attained Score | J82: =Translate!$C$432 -> Raw Score
A83: a) | B83: =IF('INPUT_Pre-check'!$D$6 =Translate!$C$91,Translate!$C$572&" "& "….." & " "& Translate!$C$573,Translate!$C$572&" "& 'INPUT_Pre-check'!$D$6 &" "&Translate!$C$573) -> What proportion of the total land in ….. is indigenous and community lands? | C83: =Translate!$C$577 -> Landmark: Global platform of indigenous and community lands | E83: 0.6 | F83: Inconsequential | H83: =$E$81/COUNTA(B83,B85,B87) -> 0.03333333333 | I83: =(J83*H83) -> 0.01666666667 | J83: =IF(F83='Lists 2'!$Q$12,0.5,(1-E83)) -> 0.5
B84: =Translate!$C$574 -> Impact of population density on SPIS | C84: =Translate!$C$578 -> Data Sources for Population Density | D84: =Translate!$C$579 -> Population Density | H84: =$E$81/COUNTA(B83,B85,B87) -> 0.03333333333 | I84: =(J84*H84) -> 0.03333333333 | J84: =IF(E85='Lists 2'!$Y$11,VLOOKUP(F85,'Lists 2'!$M$11:$O$15,2,FALSE)/6,VLOOKUP(F85,'Lists 2'!$M$11:$O$15,3,FALSE)/6) -> 1
A85: b) | B85: =Translate!$C$575 -> Does the population density positively or negatively affect the market for SPIS? | C85: =Translate!$C$580 -> World Population Density Data Index Mundi | D85: <1 | E85: Positive | F85: Inconsequential
A87: c) | B87: =Translate!$C$576 -> Does the population density have a positive or negative effect on land availability for agriculture? | E87: Positive | F87: Inconsequential | H87: =$E$81/COUNTA(B83,B85,B87) -> 0.03333333333 | I87: =(J87*H87) -> 0.03333333333 | J87: =IF(E87='Lists 2'!$Y$11,VLOOKUP(F87,'Lists 2'!$M$11:$O$15,2,FALSE)/6,VLOOKUP(F87,'Lists 2'!$M$11:$O$15,3,FALSE)/6) -> 1
A90: 9 | B90: =Translate!$C$584 -> Transportation and communication infrastructure | E90: =Translate!$C$411 -> Highest Possible Score | F90: =Translate!$C$412 -> Attained Score
E91: ='INPUT_Weight setting'!F26 -> 0.1 | F91: =I93+I99 -> 0.05
B92: =Translate!$C$409 -> Questions | C92: =Translate!$C$410 -> Sample Data Sources | E92: =Translate!$C$413 -> Answer | F92: =Translate!$C$414 -> Relevance | H92: =Translate!$C$430 -> Weight | I92: =Translate!$C$431 -> Attained Score | J92: =Translate!$C$432 -> Raw Score
A93: a) | B93: =Translate!$C$585 -> Transport | H93: =E91/COUNTA(B93,B99) -> 0.05 | I93: =I94+I95+I97+I98+I96 -> 0.025
A94: i) | B94: =IF('INPUT_Pre-check'!$D$6 =Translate!$C$91,Translate!$C$586 &" "& "….." &Translate!$C$416,Translate!$C$586&" "& 'INPUT_Pre-check'!$D$6 &Translate!$C$416) -> What is the quality of air transport infrastructure score of …..? | C94: =Translate!$C$591 -> Global mobility data, Country snapshot | F94: Inconsequential | H94: =H93/COUNTA(B94:B98) -> 0.01 | I94: =(J94*H94) -> 0.005 | J94: =(IF(F94='Lists 2'!$Q$12,3.5,E94))/7 -> 0.5
A95: ii) | B95: =IF('INPUT_Pre-check'!$D$6 =Translate!$C$91,Translate!$C$587 &" "& "….." &Translate!$C$416,Translate!$C$587&" "& 'INPUT_Pre-check'!$D$6 &Translate!$C$416) -> What is the quality of port infrastructure score of …..? | F95: Inconsequential | H95: =H93/COUNTA(B94:B98) -> 0.01 | I95: =(J95*H95) -> 0.005 | J95: =(IF(F95='Lists 2'!$Q$12,3.5,E95))/7 -> 0.5
A96: iii) | B96: =IF('INPUT_Pre-check'!$D$6 =Translate!$C$91,Translate!$C$588 &" "& "….." &Translate!$C$416,Translate!$C$588&" "& 'INPUT_Pre-check'!$D$6 &Translate!$C$416) -> What is the quality of road infrastructure score of …..? | F96: Inconsequential | H96: =H93/COUNTA(B94:B98) -> 0.01 | I96: =(J96*H96) -> 0.005 | J96: =(IF(F96='Lists 2'!$Q$12,3.5,E96))/7 -> 0.5
A97: iv) | B97: =IF('INPUT_Pre-check'!$D$6 =Translate!$C$91,Translate!$C$589 &" "& "….." &Translate!$C$416,Translate!$C$589&" "& 'INPUT_Pre-check'!$D$6 &Translate!$C$416) -> What is the quality of railroad infrastructure score of …..? | F97: Inconsequential | H97: =H93/COUNTA(B94:B98) -> 0.01 | I97: =(J97*H97) -> 0.005 | J97: =(IF(F97='Lists 2'!$Q$12,3.5,E97))/7 -> 0.5
A98: v) | B98: =IF('INPUT_Pre-check'!$D$6 =Translate!$C$91,Translate!$C$590 &" "& "….." &Translate!$C$416,Translate!$C$590&" "& 'INPUT_Pre-check'!$D$6 &Translate!$C$416) -> What is the overall logistics performance index score (2018) of …..? | C98: =Translate!$C$592 -> Logistics performance index: Quality of trade and transport-related infrastructure (1=low to 5=high) | F98: Inconsequential | H98: =H93/COUNTA(B94:B98) -> 0.01 | I98: =(J98*H98) -> 0.005 | J98: =(IF(F98='Lists 2'!$Q$12,2.5,E98))/5 -> 0.5
A99: b) | B99: =Translate!$C$593 -> Communication | H99: =E91/COUNTA(B93,B99) -> 0.05 | I99: =I100+I101+I102 -> 0.025
A100: i) | B100: =IF('INPUT_Pre-check'!$D$6 =Translate!$C$91,Translate!$C$594 &" "& "….." &Translate!$C$416,Translate!$C$594&" "& 'INPUT_Pre-check'!$D$6 &Translate!$C$416) -> What is the mobile-cellular telephone subscriptions per 100 inhabitants value in …..? | C100: =Translate!$C$597 -> International Telecommunications Union, global ICT Development Index (IDI) statistics | F100: Inconsequential | H100: =H99/COUNTA(B100:B102) -> 0.01666666667 | I100: =(J100*H100) -> 0.008333333333 | J100: =(IF(F100='Lists 2'!$Q$12,50,E100))/100 -> 0.5
A101: i) | B101: =IF('INPUT_Pre-check'!$D$6 =Translate!$C$91,Translate!$C$595 &" "& "….." &Translate!$C$416,Translate!$C$595&" "& 'INPUT_Pre-check'!$D$6 &Translate!$C$416) -> What is the active mobile-broadband subscriptions per 100 inhabitants value in …..? | F101: Inconsequential | H101: =H99/COUNTA(B100:B102) -> 0.01666666667 | I101: =(J101*H101) -> 0.008333333333 | J101: =(IF(F101='Lists 2'!$Q$12,50,E101))/100 -> 0.5
A102: iii) | B102: =IF('INPUT_Pre-check'!$D$6 =Translate!$C$91,Translate!$C$596 &" "& "….." &Translate!$C$416,Translate!$C$596&" "& 'INPUT_Pre-check'!$D$6 &Translate!$C$416) -> What is the overall ICT Development Index value - IDI - (2017) in …..? | F102: Inconsequential | H102: =H99/COUNTA(B100:B102) -> 0.01666666667 | I102: =(J102*H102) -> 0.008333333333 | J102: =(IF(F102='Lists 2'!$Q$12,5,E102))/10 -> 0.5
C105: =Translate!$C$628 -> Got more recent data sources?
C106: =Translate!$C$629 -> PLEASE SHARE
C107: =Translate!$C$630 -> and help us to improve our tools.
C108: =Translate!$C$631 -> Thank you.

Sheet OUTPUT_Result
C2: =Translate!$C$599 -> OUTPUT - Market Assessment Results
B4: =Translate!$C$600 -> Country: | C4: ='INPUT_Pre-check'!D6 -> Select the country of Interest | H4: =Translate!$C$602 -> Assessment date: | J4: ='INPUT_Pre-check'!D8 -> 00:00:00
B5: =Translate!$C$601 -> Specific area of interest: | C5: ='INPUT_Pre-check'!D7 -> 0 | H5: =Translate!$C$603 -> Assessor name: | J5: ='INPUT_Pre-check'!D9 -> 0
B7: =Translate!$C$604 -> A. Market Potential for SPIS: Score and Relevances
B9: =Translate!$C$605 -> Total Score (%) | H9: =Translate!$C$606 -> Overview of Relevance Ratings
B23: =Translate!$C$607 -> B. Market Potential for SPIS: Overall Score
L27: =Translate!$C$619 -> Major Market Barrier
L28: =Translate!$C$620 -> Minor Market Barrier
L29: =Translate!$C$621 -> Minor Market Strength
L30: =Translate!$C$622 -> Major Market Strength
B52: =Translate!$C$623 -> C. Market Potential for SPIS: Comparative Score to Weight Setting

Sheet Translate
B2: =$C$15 -> Do not modify this sheet
B5: =$C$16 -> Reference Row
B6: =$C$17 -> Selected Language: | C6: ='READ ME'!$D$3 -> English | D6: English | E6: Français | F6: Español | G6: العربية
B7: =$C$18 -> Sheet name | C7: =HLOOKUP($C$6,$D$6:$I$701,ROW()-ROW($B$5),FALSE) -> READ ME | D7: READ ME | E7: LISER MOI | F7: LÉEME | G7: اقرأ هذه الصفحة
C8: =HLOOKUP($C$6,$D$6:$I$701,ROW()-ROW($B$5),FALSE) -> INPUT_Pre-check | D8: INPUT_Pre-check | E8: INTRANT_Vérification préliminaire | F8: ENTRADA_Precontrol | G8: المدخلات_التحقق المسبق
C9: INPUT_Weight setting | D9: INPUT_Weight setting | E9: INTRANT_Facteurs de pondération | F9: ENTRADA_Ajuste de valoración | G9: المدخلات_تحديد الأهمية
C10: INPUT_Geophysical Parameters | D10: INPUT_Geophysical Parameters | E10: INTRANT_Paramètres géophysique | F10: ENTRADA_Parámetros Geofísicos | G10: المدخلات_المعلمات الجيوفيزيائية
C11: INPUT_Business Conditions | D11: INPUT_Business Conditions | E11: INTRANT_Environnement économique | F11: ENTRADA_Condiciones de Mercado | G11: المدخلات_شروط السوق
C12: OUTPUT_Result | D12: OUTPUT_Result | E12: PRODUIT_RÉSULTAT | F12: SALIDA_Resultados | G12: المخرجات_النتيجة
C13: Translate | D13: Translate | E13: Traduire | F13: Traducción | G13: ترجمة
B15: =$C$13 -> Translate | C15: Do not modify this sheet | D15: Do not modify this sheet | E15: Ne modifiez pas cette feuille | F15: No modifique esta hoja | G15: لا تعدل هذه الصفحة
C16: Reference Row | D16: Reference Row | E16: Ligne de référence | F16: Fila de referencia | G16: صف مرجعي
C17: Selected Language: | D17: Selected Language: | E17: Langue sélectionnée: | F17: Idioma seleccionado: | G17: اللغة المختارة:
C18: Sheet name | D18: Sheet name | E18: Nom de la feuille | F18: Nombre de la hoja | G18: اسم الصفحة
B20: =$C$7 -> READ ME | C20: Select language | D20: Select language | E20: Sélectionner la langue | F20: Seleccione el idioma | G20: اختار اللغة
C21: Read Me Sheet | D21: Read Me Sheet | E21: Feuille Lisez-moi | F21: Léeme | G21: اقرأ هذه الصفحة
C22: Market – Market Assessment tool | D22: Market – Market Assessment tool | E22: MARCHÉ – Outil d'analyse du marché | F22: MERCADO – Herramienta de Evaluación de Mercado | G22: السوق – أداة تقييم السوق
C23: Introduction | D23: Introduction | E23: Introduction | F23: Introducción | G23: مقدمة
C24: This tool complements the module MARKET in the SPIS Toolbox. The tool serves to determine geophysical parameters highlighted as make or break. If any of the parameters scores a 0, the area is considered to have very poor potential for SPIS. A ‘yes’ from this evaluation allows consideration of other parameters. | D24: This tool complements the module MARKET in the SPIS Toolbox. The tool serves to determine geophysical parameters highlighted as make or break. If any of the parameters scores a 0, the area is considered to have very poor potential for SPIS. A ‘yes’ from this evaluation allows consideration of other parameters. | E24: Cet outil vient compléter le module "MARCHÉ" de la boîte à outils SPIS. Il sert à déterminer les paramètres géophysiques décisifs. Si l'un des paramètres obtient un score de 0, la zone est considérée comme ayant un potentiel très faible pour les SPIS. Un "Oui" dans cette évaluation permet de prendre en compte d'autres paramètres. | F24: Esta herramienta complementa el módulo "MERCADO" en la Caja de herramientas de SPIS. La herramienta sirve para determinar los parámetros geofísicos determinantes para el éxito o fracaso de un SPIS. Si cualquiera de los parámetros obtiene un puntaje de 0, se considera que el área tiene muy poco potencial para SPIS. Un 'sí' de esta evaluación permite la consideración de otros parámetros. | G24: تكمّل هذه الأداة وحدة "السوق" الخاصة بصندوق الأدوات لأنظمة الريّ بالطاقة الشمسية (SPIS Toolbox). تعمل الأداة على تحديد المعلمات الجيوفيزيائية المميزة. إذا سجل أي من المعلمات 0 ، فإن المنطقة تعتبر ذات إمكانات ضعيفة جدًا لـ SPIS. تسمح الإجابة "نعم" في هذا التقييم بأخذ معايير أخرى بعين الاعتبار.
C25: Tips & Tricks | D25: Tips & Tricks | E25: Conseils et Astuces | F25: Consejos y trucos | G25: نصائح وحيل
C26: ● Make sure that macro is always enabled for the proper functioning of this tool. | D26: ● Make sure that macro is always enabled for the proper functioning of this tool. | E26: ● Assurez-vous que les macros sont toujours activées pour le bon fonctionnement de cet outil. | F26: ● Asegúrese de que la macro esté siempre habilitada para el correcto funcionamiento de esta herramienta. | G26: ● تأكد من تمكين الماكرو دائمًا من أجل حسن سير هذه الأداة
C27: ● Only enter values into white (non-coloured) cells. | D27: ● Only enter values into white (non-coloured) cells. | E27: ● Saisissez des valeurs uniquement dans les cellules blanches. | F27: ● Introduzca solamente valores en celdas en blanco (no coloreadas). | G27: ● أدخل القيم فقط في الخلايا البيضاء (غير الملونة).
C28: ● Tool may contain illustrative sample values. Please adjust or remove. | D28: ● Tool may contain illustrative sample values. Please adjust or remove. | E28: ● Cet outil peut contenir des valeurs données à titres d'exemple. Veuillez les ajuster ou les supprimer. | F28: ● La herramienta puede contener valores ilustrativos de ejemplo. Por favor, ajustar o eliminar. | G28: ● قد تحتوي الأداة على قيم عينة توضيحية. يرجى التعديل أو الإزالة.
C29: ● This tool contains numerous critical formulas or calculations in colored cells. | D29: ● This tool contains numerous critical formulas or calculations in colored cells. | E29: ● Cet outil contient de nombreuses formules importantes ou des calculs dans les cellules colorées. | F29: ● Esta herramienta contiene numerosas fórmulas o cálculos críticos en celdas coloreadas. | G29: ● تحتوي هذه الأداة على العديد من الصيغ أو الحسابات الهامة في الخلايا الملونة.
C30: ● The sheets in this tool are linked and values are automatically calculated and transferred between the sheets. | D30: ● The sheets in this tool are linked and values are automatically calculated and transferred between the sheets. | E30: ● Les feuilles de cet outil sont liées et les valeurs sont automatiquement calculées et transférées d'une feuille à l'autre. | F30: ● Las hojas de esta herramienta están referenciadas y los valores se calculan y transfieren automáticamente entre las hojas. | G30: ● يتم ربط الأوراق الموجودة في هذه الأداة ويتم حساب القيم تلقائيًا ونقلها بين الأوراق.
C31: ● You can access data sources to get the required information by clicking on the provided links. | D31: ● You can access data sources to get the required information by clicking on the provided links. | E31: ● Vous pouvez accéder aux sources de données pour obtenir les informations requises en cliquant sur les liens fournis. | F31: ● Puede acceder a las fuentes de datos para obtener la información requerida utilizando los enlaces recomendados. | G31: ● يمكنك الوصول إلى مصادر البيانات للحصول على المعلومات المطلوبة من خلال النقر على الروابط المتوفرة.
C32: ● For the multilanguage option to work properly, do NOT delete sheets. | D32: ● For the multilanguage option to work properly, do NOT delete sheets. | E32: ● Pour que l'option multilingue fonctionne correctement, ne supprimez PAS les feuilles. | F32: ● Para que la opción de varios idiomas funcione correctamente, NO elimine las hojas. | G32: ● لكي يعمل خيار اللغات المتعددة بشكل صحيح ، لا تحذف الصفحات
C33: ● Make sure that this file is always saved as ".xlsm". | D33: ● Make sure that this file is always saved as ".xlsm". | E33: ● Assurez-vous que ce fichier est toujours enregistré sous ".xlsm". | F33: ● Asegúrese de que este archivo siempre se guarde como ".xlsm". | G33: ● تأكد من حفظ هذا الملف دائمًا باسم ".xlsm"
C34: Overview | D34: Overview | E34: Aperçu | F34: Sinopsis | G34: نظرة عامة
C35: This tool comprises the following sheet: | D35: This tool comprises the following sheet: | E35: Cet outil est composé des feuilles suivantes: | F35: Esta herramienta incluye las siguientes hojas: | G35: تتكون هذه الأداة من الصفحات التالية:
C36: Allows the first check for SPIS suitability to proceed with the assessment | D36: Allows the first check for SPIS suitability to proceed with the assessment | E36: Permet une première vérification de l'aptitude du SPIS à faire l'objet d'une évaluation | F36: Permite un primer control de aptitud del SPIS para proceder con la evaluación detallada. | G36: يسمح بالتحقق الأول من ملاءمة SPIS لمتابعة التقييم
C37: Provides a description of parameters and allows for adjusting weights | D37: Provides a description of parameters and allows for adjusting weights | E37: Fournit une description des paramètres et permet d'ajuster les coefficients de pondération | F37: Proporciona una descripción de los parámetros y permite ajustar una valoración del impacto de las condiciones de mercado | G37: يقدم وصفًا للمعلمات ويسمح بضبط الأهمية
C38: For defining geophysical parameters in the target area | D38: For defining geophysical parameters in the target area | E38: Permet de définir les paramètres géophysiques dans la région cible | F38: Para definir los parámetros geofísicos en el área de interés | G38: لتحديد المعلمات الجيوفيزيائية في المنطقة المستهدفة
C39: For defining business relevant parameters relevant to the target area | D39: For defining business relevant parameters relevant to the target area | E39: Permet de définir les paramètres économiques pertinents pour la zone cible | F39: Para definir los parámetros relevantes de negocio importantes para el área objetivo | G39: لتحديد المعلمات التجارية ذات الصلة بالمنطقة المستهدفة
C40: Shows a graphic overview of the market potential of SPIS within an area | D40: Shows a graphic overview of the market potential of SPIS within an area | E40: PRODUIT_RÉSULTAT : donne un aperçu graphique du potentiel de marché d'un SPIS dans une région | F40: Muestra una descripción gráfica del potencial de mercado de SPIS en un área | G40: يعرض نظرة عامة بيانية لإمكانيات السوق لـ SPIS داخل منطقة ما
C41: About | D41: About | E41: En savoir plus | F41: Acerca de | G41: حول
C42: Published by: | D42: Published by: | E42: Publié par: | F42: Publicado por: | G42: نشرت من قبل:
C43: Responsible: | D43: Responsible: | E43: Responsables: | F43: Responsable: | G43: مسؤول:
C44: Contact: | D44: Contact: | E44: Contact: | F44: Contacto: | G44: اتصال:
C45: Download link: | D45: Download link: | E45: Lien de téléchargement: | F45: Enlace descarga: | G45: رابط التحميل:
C46: About: | D46: About: | E46: À propos de: | F46: Acerca de: | G46: حول:
C47: Version: | D47: Version: | E47: Version: | F47: Versión: | G47: إصدار:
C48: GIZ & FAO | D48: GIZ & FAO | E48: GIZ et FAO | F48: GIZ & FAO | G48: الوكالة الألمانية للتعاون الدولي (GIZ) ومنظمة الأغذية والزراعة (FAO)
C49: GIZ project "Water and Energy for Food (WE4F)" | D49: GIZ project "Water and Energy for Food (WE4F)" | E49: Projet de la GIZ « Les innovations dans l’agriculture et la production alimentaire protègent le climat (PEEPA/WE4F) » (Water and Energy for Food) | F49: GIZ project "Water and Energy for Food (WE4F)" | G49: مشروع الوكالة الألمانية للتعاون الدولي "المياه والطاقة من أجل الغذاء Water and Energy for Food (WE4F)"
C50: Water and Energy for Food Grand Challenge at: | D50: Water and Energy for Food Grand Challenge at: | E50: Eau et Energie pour l'Alimentation (PEEPA). Disponible à l’adresse : | F50: Water and Energy for Food Grand Challenge at: | G50: التحدي الكبير للمياه والطاقة من أجل الغذاء في:
C51: 3.0 (June 2021) | D51: 3.0 (June 2021) | E51: 3.0 (Juin 2021) | F51: 3.0 (Junio 2021) | G51: 3.0 (يونيو 2021)
C52: The Toolbox on Solar Powered Irrigation Systems (SPIS) is a legacy project of the global initiative Powering Agriculture: An Energy Grand Challenge for Development (PAEGC). In 2012, the United States Agency for International Development (USAID), the Swedish International Development Cooperation Agency (Sida), the German Federal Ministry for Economic Cooperation and Development (BMZ), Duke Energy, and the Overseas Private Investment Corporation (OPIC) combined resources to support new and sustainable approaches to accelerate the development and deployment of clean energy solutions for increasing agriculture productivity. The Toolbox on SPIS has now been embraced for further development by PAEGC's successor program Water and Energy for Food (WE4F). WE4F is a joint international initiative of the European Union (EU), German Federal Ministry for Economic Cooperation and Development (BMZ), the Ministry of Foreign Affairs of the Kingdom of the Netherlands, Sweden through the Swedish International Development Cooperation Agency (Sida), and the U.S. Agency for International Development (USAID). WE4F aims to increase food production along the value chain through a more sustainable and efficient usage of water and/or energy. | D52: The Toolbox on Solar Powered Irrigation Systems (SPIS) is a legacy project of the global initiative Powering Agriculture: An Energy Grand Challenge for Development (PAEGC). In 2012, the United States Agency for International Development (USAID), the Swedish International Development Cooperation Agency (Sida), the German Federal Ministry for Economic Cooperation and Development (BMZ), Duke Energy, and the Overseas Private Investment Corporation (OPIC) combined resources to support new and sustainable approaches to accelerate the development and deployment of clean energy solutions for increasing agriculture productivity. The Toolbox on SPIS has now been embraced for further development by PAEGC's successor program Water and Energy for Food (WE4F). WE4F is a joint international initiative of the European Union (EU), German Federal Ministry for Economic Cooperation and Development (BMZ), the Ministry of Foreign Affairs of the Kingdom of the Netherlands, Sweden through the Swedish International Development Cooperation Agency (Sida), and the U.S. Agency for International Development (USAID). WE4F aims to increase food production along the value chain through a more sustainable and efficient usage of water and/or energy. | E52: La boîte à outils pour les systèmes d’irrigation à énergie solaire (Solar Powered Irrigation Systems, SPIS) est un projet hérité de l'initiative mondiale « Propulser l’agriculture : un grand défi énergétique pour le développement » (Powering Agriculture: An Energy Grand Challenge for Development – PAEGC). En 2012, l’Agence des États-Unis pour le développement international (USAID), l’Agence suédoise de coopération internationale au développement (Sida), le ministère fédéral allemand de la Coopération économique et du Développement (BMZ), Duke Energy et l’Overseas Private Investment Cooperation (OPIC) ont mis leurs ressources en commun pour soutenir des approches nouvelles et durables afin d'accélérer le développement et le déploiement des solutions énergétiques propres pour accroître la productivité agricole. La boîte à outils sur les SPIS a maintenant été adoptée pour un développement ultérieur par le programme successeur du PAEGC, Eau et Energie pour l'Alimentation (PEEPA) - Water and Energy for Food (WE4F). WE4F/PEEPA est une initiative commune de l'Union européenne, du Ministère fédéral allemand de la coopération économique et du développement (BMZ), du Ministère des affaires étrangères du royaume des Pays-Bas, de l’Agence suédoise de développement (Sida) et de l’Agence de développement des États-Unis (USAID). WE4F/PEEPA vise à accroître la production alimentaire tout au long de la chaîne de valeur grâce à une utilisation plus durable et plus efficace de l'eau et/ou de l'énergie. | F52: La publicación de la Caja de herramientas de sistemas de riego solar ha sido posible gracias al apoyo brindado por la iniciativa mundial Powering Agriculture: An Energy Grand Challenge for Development (PAEGC) (Energización Rural: Un gran desafío energético para el desarrollo). En 2012, la Agencia de los Estados Unidos para el Desarrollo Internacional (USAID), la Agencia Sueca de Cooperación Internacional para el Desarrollo (Sida), el Ministerio Federal de Cooperación Económica y Desarrollo (BMZ) de Alemania, la empresa de energía Duke Energy Corporation y la Corporación de Inversiones Privadas en el Extranjero (OPIC) juntaron recursos para crear la iniciativa PAEGC. El objetivo de PAEGC es fomentar nuevos enfoques sostenibles con el fin de acelerar el desarrollo y asegurar el establecimiento de energías limpias que incrementen la productividad y/o el valor de la agricultura en países en desarrollo y regiones emergentes sin acceso a fuentes de energía confiables, asequibles y limpias. | G52: يعتبر صندوق الأدوات الخاص بأنظمة الري التي تعمل بالطاقة الشمسية (SPIS) مشروعًا هاما للمبادرة العالمية "دعم الزراعة: تحدي الطاقة الكبير من أجل التنمية" Powering Agriculture: An Energy Grand Challenge for Development (PAEGC). في عام 2012 ، قامت الوكالة الأمريكية للتنمية الدولية (USAID) ، والوكالة السويدية للتعاون الإنمائي الدولي (ٍSida) ، والوزارة الفيدرالية الألمانية للتعاون الاقتصادي والتنمية (BMZ) ، وشركة Duke Energy ، ومؤسسة الاستثمار الخاص لما وراء البحار (OPIC) بجهود مشتركة لدعم الأساليب الجديدة والمستدامة لتسريع تطوير ونشر حلول الطاقة النظيفة لزيادة الإنتاجية الزراعية. تم اعتماد صندوق SPIS الآن لمزيد من التطوير من قبل البرنامج اللاحق لـ PAEGC "الماء والطاقة من اجل الغذاء" Water and Energy for Food (WE4F). الاخير هو مبادرة دولية مشتركة من الاتحاد الأوروبي (EU) ، والوزارة الاتحادية الألمانية للتعاون الاقتصادي والتنمية (BMZ) ، ووزارة الشؤون الخارجية لمملكة هولندا ، والسويد من خلال الوكالة السويدية للتعاون الإنمائي الدولي (Sida) ، والوكالة الأمريكية للتنمية الدولية (USAID). تهدف WE4F إلى زيادة إنتاج الغذاء على امتداد سلاسل القيمة الغذائية من خلال استخدام المياه و / أو الطاقة بطريقة أكثر استدامة وكفاءة.
C53: The designations employed and the presentation of material in this information product do not imply the expression of any opinion whatsoever on the part of Deutsche Gesellschaft für Internationale Zusammenarbeit (GIZ) GmbH, Food and Agriculture Organization of the United Nations (FAO) or any of the PAEGC Founding Partners concerning the legal or development status of any country, territory, city or area or of its authorities, or concerning the delimitation of its frontiers or boundaries. The mention of specific companies or products of manufacturers, whether or not these have been patented, does not imply that these have been endorsed or recommended by GIZ, FAO, or any of the PAEGC Founding Partners in preference to others of a similar nature that are not mentioned. The views expressed in this information product are those of the author and do not necessarily reflect the views or policies of GIZ, FAO, or any of the PAEGC Founding Partners. | D53: The designations employed and the presentation of material in this information product do not imply the expression of any opinion whatsoever on the part of Deutsche Gesellschaft für Internationale Zusammenarbeit (GIZ) GmbH, Food and Agriculture Organization of the United Nations (FAO) or any of the PAEGC Founding Partners concerning the legal or development status of any country, territory, city or area or of its authorities, or concerning the delimitation of its frontiers or boundaries. The mention of specific companies or products of manufacturers, whether or not these have been patented, does not imply that these have been endorsed or recommended by GIZ, FAO, or any of the PAEGC Founding Partners in preference to others of a similar nature that are not mentioned. The views expressed in this information product are those of the author and do not necessarily reflect the views or policies of GIZ, FAO, or any of the PAEGC Founding Partners. | E53: Les appellations employées dans ce produit d’information et la présentation des documents qui y figurent n’impliquent de la part de la Deutsche Gesellschaft für Internationale Zusammenarbeit (GIZ) GmbH, de l’Organisation des Nations unies pour l’alimentation et l’agriculture (FAO) ou de l’un des partenaires fondateurs de l’initiative PAEGC aucune prise de position quant au statut juridique ou au stade de développement des pays, territoires, villes ou zones ou de leurs autorités, ni quant au tracé de leurs frontières ou limites. La mention de sociétés déterminées ou de produits de fabricants, qu’ils soient ou non brevetés, n’entraîne de la part de la GIZ, de la FAO ou de l’un des partenaires fondateurs du PAEGC aucune approbation ou recommandation desdits produits de préférence à d’autres de nature analogue qui ne sont pas cités. Les opinions exprimées dans ce produit d’information sont celles des auteurs et ne reflètent pas nécessairement celles de la GIZ, de la FAO, ou de l’un des partenaires fondateurs du PAEGC. | F53: Las denominaciones empleadas y la presentación del material en este producto informativo no implican juicio alguno por parte de la Deutsche Gesellschaft für Internationale Zusammenarbeit (GIZ) GmbH, la Organización de las Naciones Unidas para la Alimentación y la Agricultura (FAO), o los socios fundadores de la iniciativa PAEGC, sobre la condición jurídica o el grado de desarrollo de ninguno de los países, territorios, ciudades o zonas citados o de sus autoridades, ni respecto de la delimitación de sus fronteras o límites. La mención de empresas o productos de fabricantes en particular, estén o no patentados, no implica que la GIZ, la FAO o alguno de los socios fundadores de la iniciativa PAEGC los aprueben o recomienden, dándoles preferencia sobre otros de naturaleza similar que no se mencionan. Las opiniones expresadas en este producto informativo son las de su(s) autor(es) o autora(s), y no reflejan necesariamente los puntos de vista o las políticas de la GIZ, la FAO o ninguno de los socios fundadores de la iniciativa PAEGC. | G53: التسميات المستخدمة وطريقة عرض المواد في هذا المنتج المعلوماتي لا تعبر عن أي رأي من جانب Deutsche Gesellschaft für Internationale Zusammenarbeit (GIZ) GmbH أو منظمة الأغذية والزراعة للأمم المتحدة (FAO) أو أي من الشركاء المؤسسين لـ PAEGC فيما يتعلق بالوضع القانوني أو التنموي لأي بلد أو إقليم أو مدينة أو منطقة أو لسلطاتها ، أو فيما يتعلق بترسيم حدودها أو نطاقاتها. إن ذكر شركات أو منتجات معينة من الشركات المصنعة ، سواء تم تسجيل براءات اختراع لها أم لا ، لا يعني أن هذه الشركات أو المنتجات قد تم اعتمادها أو التوصية بها من قبل GIZ أو منظمة الأغذية والزراعة أو أي من الشركاء المؤسسين لـ PAEGC او تفضيلها على الشركات أو المنتجات الاخرى غير مذكورة من نفس الطبيعة. الآراء الواردة في هذا المنتج المعلوماتي هي آراء المؤلف ولا تعكس بالضرورة آراء أو سياسات الوكالة الألمانية للتعاون الدولي أو منظمة الأغذية والزراعة أو أي من الشركاء المؤسسين لـ PAEGC.
C54: GIZ, FAO and the PAEGC Founding Partners encourage the use, reproduction and dissemination of material in this information product. Except where otherwise indicated, material may be copied, downloaded and printed for private study, research and teaching purposes, or for use in non-commercial products or services, provided that appropriate acknowledgement of GIZ and FAO as the source and copyright holder is given. | D54: GIZ, FAO and the PAEGC Founding Partners encourage the use, reproduction and dissemination of material in this information product. Except where otherwise indicated, material may be copied, downloaded and printed for private study, research and teaching purposes, or for use in non-commercial products or services, provided that appropriate acknowledgement of GIZ and FAO as the source and copyright holder is given. | E54: La GIZ, la FAO et les partenaires fondateurs du PAEGC encouragent l’utilisation, la reproduction et la diffusion des informations contenues dans ce document. Sauf indication contraire, ces dernières peuvent être copiées, téléchargées et imprimées à des fins privées d’étude, de recherche et d’enseignement, ou pour être utilisées dans des produits ou services non commerciaux, à condition que la GIZ et la FAO soient clairement indiquées en tant que sources des informations et détentrices du droit d’auteur. | F54: La GIZ, la FAO y los socios fundadores de la iniciativa PAEGC fomentan la utilización, la reproducción y la difusión del material presentado en este producto informativo. A menos que se indique lo contrario, el material puede ser copiado, descargado e impreso con fines de estudio privado, enseñanza e investigación científica, o para su utilización en productos o servicios no comerciales, siempre que se otorgue a la GIZ y la FAO el debido reconocimiento como fuentes y como titulares de los derechos de autor. | G54: تشجع الوكالة الألمانية للتعاون الدولي ومنظمة الأغذية والزراعة والشركاء المؤسسين لـ PAEGC على استخدام واستنساخ ونشر المواد في هذا المنتج المعلوماتي. يمكن نسخ المواد وتنزيلها وطباعتها للدراسة الخاصة ، ولأغراض البحث والتعليم ، أو لاستخدامها في المنتجات أو الخدمات غير التجارية ، ما لم يُذكر خلاف ذلك ، شريطة تقديم إقرار مناسب من الوكالة الألمانية للتعاون الدولي ومنظمة الأغذية والزراعة كمصدر وصاحب حقوق التأليف والنشر.
C55: © GIZ and FAO, 2021 | D55: © GIZ and FAO, 2021 | E55: © GIZ et FAO, 2021 | F55: © GIZ & FAO, 2021 | G55: © GIZ و FAO, 2021
B57: =$C$8 -> INPUT_Pre-check | C57: INPUT - Pre-check | D57: INPUT - Pre-check | E57: INTRANT - Vérification préliminaire | F57: ENTRADA - Precontrol | G57: المدخلات - التحقق المسبق
C58: Country: | D58: Country: | E58: Pays : | F58: País: | G58: الدولة:
C59: Specific area of interest: | D59: Specific area of interest: | E59: Zone spécifique concernée : | F59: Área de interés: | G59: منطقة الاهتمام المحددة:
C60: Assessment date: | D60: Assessment date: | E60: Date de l'évaluation : | F60: Fecha de evaluación: | G60: تاريخ التقييم:
C61: Assessor name: | D61: Assessor name: | E61: Nom de l’évaluateur : | F61: Nombre del evaluador/a: | G61: اسم المُقَيِّم:
C62: Critical Geophysical Parameters | D62: Critical Geophysical Parameters | E62: Paramètres géophysiques décisifs | F62: Parámetros geofísicos críticos | G62: المعلمات الجيوفيزيائية الحاسِمة
C63: Questions | D63: Questions | E63: Questions | F63: Preguntas | G63: أسئلة
C64: Sample Data Sources | D64: Sample Data Sources | E64: Sources des données | F64: Fuente de datos de muestra | G64: عينة من مصادر البيانات
C65: Highest Possible Score | D65: Highest Possible Score | E65: Meilleur score possible | F65: Puntuación más alta posible | G65: أعلى نتيجة ممكنة
C66: Attained Score | D66: Attained Score | E66: Score obtenu | F66: Puntuación alcanzada | G66: النتيجة المحققة
C67: Answer | D67: Answer | E67: Réponse | F67: Respuesta | G67: إجابة
C68: Suitability | D68: Suitability | E68: Aptitude | F68: Aptitud | G68: ملاءمة
C69: What is the major land cover found in the area? | D69: What is the major land cover found in the area? | E69: Quel est le type d'occupation des sols prédominant dans la zone concernée ? | F69: ¿Cuál es la cobertura de terreno predominante en el área? | G69: ما هو الغطاء الأرضي الرئيسي الموجود في المنطقة؟
C70: What is the average annual solar irradiation in the area? (kWh/kW peak - PVOUT value) | D70: What is the average annual solar irradiation in the area? (kWh/kW peak - PVOUT value) | E70: Quelle est l'irradiation solaire annuelle moyenne de la région ? (kWh/kW crête - valeur PVOUT) | F70: ¿Cuál es la irradiación solar anual promedio (kWh/kW pico - valor PVOUT)? | G70: ما هو المتوسط السنوي للإشعاع الشمسي في المنطقة؟ (كيلوواط ساعة / كيلو واط ذروة - قيمة PVOUT)
C71: What are the average monthly temperature and precipitation values in | D71: What are the average monthly temperature and precipitation values in | E71: Quelles sont les valeurs mensuelles moyennes des températures et des précipitations en | F71: ¿Cuáles son los valores promedio mensuales de temperatura y precipitación en | G71: ما هي متوسط درجات الحرارة الشهرية وقيم هطول الأمطار في
C72: =HLOOKUP($C$6,$D$6:$I$701,ROW()-ROW($B$5),FALSE) -> ? | D72: ? | E72: ? | F72: ? | G72: ؟
C73: Monthly average temperature (°C) | D73: Monthly average temperature (°C) | E73: Températures moyennes mensuelles (°C) | F73: Temperatura promedio mensual (°C) | G73: المتوسط الشهري لدرجة الحرارة (درجة مئوية)
C74: Monthly average precipitation (mm) | D74: Monthly average precipitation (mm) | E74: Précipitations moyennes mensuelles (mm) | F74: Precipitación media mensual (mm) | G74: متوسط هطول الأمطار الشهري (مم)
C75: Aridity Index (Harouna & Carlson 1994) | D75: Aridity Index (Harouna & Carlson 1994) | E75: Indice d'aridité (Harouna & Carlson 1994) | F75: Índice de aridez (Harouna & Carlson 1994) | G75: مؤشر الجفاف (Harouna & Carlson 1994)
C76: Jan | D76: Jan | E76: janv. | F76: enero | G76: يناير
C77: Feb | D77: Feb | E77: févr. | F77: feb. | G77: فبراير
C78: Mar | D78: Mar | E78: mars | F78: marzo | G78: مارس
C79: Apr | D79: Apr | E79: avril | F79: abr. | G79: أبريل
C80: May | D80: May | E80: mai | F80: mayo | G80: مايو
C81: Jun | D81: Jun | E81: juin | F81: jun. | G81: يونيو
C82: Jul | D82: Jul | E82: juil. | F82: jul. | G82: يوليو
C83: Aug | D83: Aug | E83: août | F83: agosto | G83: أغسطس
C84: Sep | D84: Sep | E84: sept. | F84: sept. | G84: سبتمبر
C85: Oct | D85: Oct | E85: oct. | F85: oct. | G85: أكتوبر
C86: Nov | D86: Nov | E86: nov. | F86: nov. | G86: نوفمبر
C87: Dec | D87: Dec | E87: déc. | F87: dic. | G87: ديسمبر
C88: Global Land Cover | D88: Global Land Cover | E88: Couverture terrestre mondiale | F88: Cobertura terrestre global | G88: الغطاء الأرضي العالمي
C89: Global Solar Atlas | D89: Global Solar Atlas | E89: Atlas solaire mondial | F89: Atlas solar global | G89: أطلس الطاقة الشمسية العالمي
C90: AQUASTAT - Climate Information Tool | D90: AQUASTAT - Climate Information Tool | E90: AQUASTAT - Outil d'information sur le climat | F90: AQUASTAT - Herramienta de información climática | G90: أداة معلومات المناخ - AQUASTAT
B91: From "List 2" worksheet | C91: Select the country of Interest | D91: Select the country of Interest | E91: Sélectionnez le pays d'intérêt | F91: Seleccione el país de interés | G91: اختر الدولة
C92: Afghanistan | D92: Afghanistan | E92: Afghanistan | F92: Afganistán | G92: أفغانستان
C93: Albania | D93: Albania | E93: Albanie | F93: Albania | G93: ألبانيا
C94: Algeria | D94: Algeria | E94: Algérie | F94: Argelia | G94: الجزائر
C95: Andorra | D95: Andorra | E95: Andorre | F95: Andorra | G95: أندورا
C96: Angola | D96: Angola | E96: Angola | F96: Angola | G96: أنغولا
C97: Antigua and Barbuda | D97: Antigua and Barbuda | E97: Antigua-et-Barbuda | F97: Antigua y Barbuda | G97: أنتيغوا وبربودا
C98: Argentina | D98: Argentina | E98: Argentine | F98: Argentina | G98: الأرجنتين
C99: Armenia | D99: Armenia | E99: Arménie | F99: Armenia | G99: أرمينيا
C100: Australia | D100: Australia | E100: Australie | F100: Australia | G100: أستراليا
C101: Austria | D101: Austria | E101: Autriche | F101: Austria | G101: النمسا
C102: Azerbaijan | D102: Azerbaijan | E102: Azerbaïdjan | F102: Azerbaiyán | G102: أذربيجان
C103: Bahamas | D103: Bahamas | E103: Bahamas | F103: Bahamas | G103: جزر البهاما
C104: Bahrain | D104: Bahrain | E104: Bahreïn | F104: Bahrein | G104: البحرين
C105: Bangladesh | D105: Bangladesh | E105: Bangladesh | F105: Bangladesh | G105: بنغلاديش
C106: Barbados | D106: Barbados | E106: Barbade | F106: Barbados | G106: بربادوس
C107: Belarus | D107: Belarus | E107: Bélarus | F107: Belarús | G107: بيلاروس
C108: Belgium | D108: Belgium | E108: Belgique | F108: Bélgica | G108: بلجيكا
C109: Belize | D109: Belize | E109: Belize | F109: Belice | G109: بليز
C110: Benin | D110: Benin | E110: Bénin | F110: Benin | G110: بنن
C111: Bhutan | D111: Bhutan | E111: Bhoutan | F111: Bhután | G111: بوتان
C112: Bolivia | D112: Bolivia | E112: Bolivie | F112: Bolivia | G112: بوليفيا
C113: Bosnia and Herzegovina | D113: Bosnia and Herzegovina | E113: Bosnie-Herzégovine | F113: Bosnia y Herzegovina | G113: البوسنة والهرسك
C114: Botswana | D114: Botswana | E114: Botswana | F114: Botswana | G114: بوتسوانا
C115: Brazil | D115: Brazil | E115: Brésil | F115: Brasil | G115: البرازيل
C116: Brunei Darussalam | D116: Brunei Darussalam | E116: Brunéi Darussalam | F116: Brunei Darussalam | G116: بروني دار السلام
C117: Bulgaria | D117: Bulgaria | E117: Bulgarie | F117: Bulgaria | G117: بلغاريا
C118: Burkina Faso | D118: Burkina Faso | E118: Burkina Faso | F118: Burkina Faso | G118: بوركينا فاسو
C119: Burundi | D119: Burundi | E119: Burundi | F119: Burundi | G119: بوروندي
C120: Cabo Verde | D120: Cabo Verde | E120: Cabo Verde | F120: Cabo Verde | G120: كابو فيردي
C121: Cambodia | D121: Cambodia | E121: Cambodge | F121: Camboya | G121: كمبوديا
C122: Cameroon | D122: Cameroon | E122: Cameroun | F122: Camerún | G122: الكاميرون
C123: Canada | D123: Canada | E123: Canada | F123: Canadá | G123: كندا
C124: Central African Republic | D124: Central African Republic | E124: République centrafricaine | F124: República Centroafricana | G124: جمهورية أفريقيا الوسطى
C125: Chad | D125: Chad | E125: Tchad | F125: Chad | G125: تشاد
C126: Chile | D126: Chile | E126: Chili | F126: Chile | G126: شيلي
C127: China | D127: China | E127: Chine | F127: China | G127: الصين
C128: Colombia | D128: Colombia | E128: Colombie | F128: Colombia | G128: كولومبيا
C129: Comoros | D129: Comoros | E129: Comores | F129: Comoras | G129: جزر القمر
C130: Congo | D130: Congo | E130: Congo | F130: Congo | G130: الكونغو
C131: Cook Islands | D131: Cook Islands | E131: Îles Cook | F131: Islas Cook | G131: جزر كوك
C132: Costa Rica | D132: Costa Rica | E132: Costa Rica | F132: Costa Rica | G132: كوستاريكا
C133: Côte d'Ivoire | D133: Côte d'Ivoire | E133: Côte d'Ivoire | F133: Côte d’Ivoire | G133: كوت ديفوار
C134: Croatia | D134: Croatia | E134: Croatie | F134: Croacia | G134: كرواتيا
C135: Cuba | D135: Cuba | E135: Cuba | F135: Cuba | G135: كوبا
C136: =HLOOKUP($C$6,$D$6:$I$701,ROW()-ROW($B$5),FALSE) -> Cyprus | D136: Cyprus | E136: Chypre | F136: Chipre | G136: قبرص
C137: Czechia | D137: Czechia | E137: Tchéquie | F137: Chequia | G137: تشيكيا
C138: Democratic People's Republic of Korea | D138: Democratic People's Republic of Korea | E138: République populaire démocratique de Corée | F138: República Popular Democrática de Corea | G138: جمهورية كوريا الشعبية الديمقراطية
C139: Democratic Republic of the Congo | D139: Democratic Republic of the Congo | E139: République démocratique du Congo | F139: República Democrática del Congo | G139: جمهورية الكونغو الديمقراطية
C140: Denmark | D140: Denmark | E140: Danemark | F140: Dinamarca | G140: الدانمرك
C141: Djibouti | D141: Djibouti | E141: Djibouti | F141: Djibouti | G141: جيبوتي
C142: Dominica | D142: Dominica | E142: Dominique | F142: Dominica | G142: دومينيكا
C143: Dominican Republic | D143: Dominican Republic | E143: République dominicaine | F143: República Dominicana | G143: الجمهورية الدومينيكية
C144: Ecuador | D144: Ecuador | E144: Équateur | F144: Ecuador | G144: إكوادور
C145: Egypt | D145: Egypt | E145: Égypte | F145: Egipto | G145: مصر
C146: El Salvador | D146: El Salvador | E146: El Salvador | F146: El Salvador | G146: السلفادور
C147: Equatorial Guinea | D147: Equatorial Guinea | E147: Guinée équatoriale | F147: Guinea Ecuatorial | G147: غينيا الاستوائية
C148: Eritrea | D148: Eritrea | E148: Érythrée | F148: Eritrea | G148: إريتريا
C149: Estonia | D149: Estonia | E149: Estonie | F149: Estonia | G149: إستونيا
C150: Eswatini | D150: Eswatini | E150: Eswatini | F150: Eswatini | G150: إسواتيني
C151: Ethiopia | D151: Ethiopia | E151: Éthiopie | F151: Etiopía | G151: إثيوبيا
C152: Fiji | D152: Fiji | E152: Fidji | F152: Fiji | G152: فيجي
C153: Finland | D153: Finland | E153: Finlande | F153: Finlandia | G153: فنلندا
C154: France | D154: France | E154: France | F154: Francia | G154: فرنسا
C155: Gabon | D155: Gabon | E155: Gabon | F155: Gabón | G155: غابون
C156: Gambia | D156: Gambia | E156: Gambie | F156: Gambia | G156: غامبيا
C157: Georgia | D157: Georgia | E157: Géorgie | F157: Georgia | G157: جورجيا
C158: Germany | D158: Germany | E158: Allemagne | F158: Alemania | G158: ألمانيا
C159: Ghana | D159: Ghana | E159: Ghana | F159: Ghana | G159: غانا
C160: Greece | D160: Greece | E160: Grèce | F160: Grecia | G160: اليونان
C161: Grenada | D161: Grenada | E161: Grenade | F161: Granada | G161: غرينادا
C162: Guatemala | D162: Guatemala | E162: Guatemala | F162: Guatemala | G162: غواتيمالا
C163: Guinea | D163: Guinea | E163: Guinée | F163: Guinea | G163: غينيا
C164: Guinea-Bissau | D164: Guinea-Bissau | E164: Guinée-Bissau | F164: Guinea-Bissau | G164: غينيا - بيساو
C165: Guyana | D165: Guyana | E165: Guyana | F165: Guyana | G165: غيانا
C166: Haiti | D166: Haiti | E166: Haïti | F166: Haití | G166: هايتي
C167: Honduras | D167: Honduras | E167: Honduras | F167: Honduras | G167: هندوراس
C168: Hungary | D168: Hungary | E168: Hongrie | F168: Hungría | G168: هنغاريا
C169: Iceland | D169: Iceland | E169: Islande | F169: Islandia | G169: آيسلندا
C170: India | D170: India | E170: Inde | F170: India | G170: الهند
C171: Indonesia | D171: Indonesia | E171: Indonésie | F171: Indonesia | G171: إندونيسيا
C172: Iran | D172: Iran | E172: Iran | F172: Irán | G172: إيران
C173: Iraq | D173: Iraq | E173: Iraq | F173: Iraq | G173: العراق
C174: Ireland | D174: Ireland | E174: Irlande | F174: Irlanda | G174: أيرلندا
C175: Israel | D175: Israel | E175: Israël | F175: Israel | G175: إسرائيل
C176: Italy | D176: Italy | E176: Italie | F176: Italia | G176: إيطاليا
C177: Jamaica | D177: Jamaica | E177: Jamaïque | F177: Jamaica | G177: جامايكا
C178: Japan | D178: Japan | E178: Japon | F178: Japón | G178: اليابان
C179: Jordan | D179: Jordan | E179: Jordanie | F179: Jordania | G179: الأردن
C180: Kazakhstan | D180: Kazakhstan | E180: Kazakhstan | F180: Kazajstán | G180: كازاخستان
C181: Kenya | D181: Kenya | E181: Kenya | F181: Kenya | G181: كينيا
C182: Kiribati | D182: Kiribati | E182: Kiribati | F182: Kiribati | G182: كيريباس
C183: Kuwait | D183: Kuwait | E183: Koweït | F183: Kuwait | G183: الكويت
C184: Kyrgyzstan | D184: Kyrgyzstan | E184: Kirghizistan | F184: Kirguistán | G184: قيرغيزستان
C185: Lao People's Democratic Republic | D185: Lao People's Democratic Republic | E185: République démocratique populaire lao | F185: República Democrática Popular Lao | G185: جمهورية لاو الديمقراطية الشعبية
C186: Latvia | D186: Latvia | E186: Lettonie | F186: Letonia | G186: لاتفيا
C187: Lebanon | D187: Lebanon | E187: Liban | F187: Líbano | G187: لبنان
C188: Lesotho | D188: Lesotho | E188: Lesotho | F188: Lesotho | G188: ليسوتو
C189: Liberia | D189: Liberia | E189: Libéria | F189: Liberia | G189: ليبريا
C190: Libya | D190: Libya | E190: Libye | F190: Libia | G190: ليبيا
C191: Liechtenstein | D191: Liechtenstein | E191: Liechtenstein | F191: Liechtenstein | G191: ليختنشتاين
C192: Lithuania | D192: Lithuania | E192: Lituanie | F192: Lituania | G192: ليتوانيا
C193: Luxembourg | D193: Luxembourg | E193: Luxembourg | F193: Luxemburgo | G193: لكسمبرغ
C194: Madagascar | D194: Madagascar | E194: Madagascar | F194: Madagascar | G194: مدغشقر
C195: Malawi | D195: Malawi | E195: Malawi | F195: Malawi | G195: ملاوي
C196: Malaysia | D196: Malaysia | E196: Malaisie | F196: Malasia | G196: ماليزيا
C197: Maldives | D197: Maldives | E197: Maldives | F197: Maldivas | G197: ملديف
C198: Mali | D198: Mali | E198: Mali | F198: Malí | G198: مالي
C199: Malta | D199: Malta | E199: Malte | F199: Malta | G199: مالطة
C200: =HLOOKUP($C$6,$D$6:$I$701,ROW()-ROW($B$5),FALSE) -> Marshall Islands | D200: Marshall Islands | E200: Îles Marshall | F200: Islas Marshall | G200: جزر مارشال
C201: Mauritania | D201: Mauritania | E201: Mauritanie | F201: Mauritania | G201: موريتانيا
C202: Mauritius | D202: Mauritius | E202: Maurice | F202: Mauricio | G202: موريشيوس
C203: Mexico | D203: Mexico | E203: Mexique | F203: México | G203: المكسيك
C204: Micronesia | D204: Micronesia | E204: Micronésie | F204: Micronesia | G204: ميكرونيزيا
C205: Monaco | D205: Monaco | E205: Monaco | F205: Mónaco | G205: موناكو
C206: Mongolia | D206: Mongolia | E206: Mongolie | F206: Mongolia | G206: منغوليا
... 466 more rows

Sheet Calculations (hidden)
B3: Enabling SPIS Business Factors | C3: =Translate!C625 -> Initial weight setting | D3: =Translate!C626 -> Actually attained score | E3: Difference | G3: Attained Score
A4: 1 | B4: Geophysical Parameters | C4: ='INPUT_Geophysical Parameters'!E6 -> 0.1 | D4: ='INPUT_Geophysical Parameters'!F6 -> 0.09 | E4: =C4-D4 -> 0.01 | F4: =100%-C4 -> 0.9 | G4: =D4/C4 -> 0.9
A5: 2 | B5: Government interventions | C5: ='INPUT_Business Conditions'!E6 -> 0.1 | D5: ='INPUT_Business Conditions'!F6 -> 0.1 | E5: =C5-D5 -> 0 | F5: =100%-C5 -> 0.9 | G5: =D5/C5 -> 1
A6: 3 | B6: Development Organizations Interventions | C6: ='INPUT_Business Conditions'!E15 -> 0.1 | D6: ='INPUT_Business Conditions'!F15 -> 0.1 | E6: =C6-D6 -> 0 | F6: =100%-C6 -> 0.9 | G6: 1
A7: 4 | B7: Financing | C7: ='INPUT_Business Conditions'!E23 -> 0.1 | D7: ='INPUT_Business Conditions'!F23 -> 0.1 | E7: 0 | F7: 0.9 | G7: 1
A8: 5 | B8: Availability and cost of alternative sources of power for pumping | C8: ='INPUT_Business Conditions'!E36 -> 0.1 | D8: ='INPUT_Business Conditions'!F36 -> 0.008333333333 | E8: 0.09166666667 | F8: 0.9 | G8: 0.08333333333
A9: 6 | B9: Technical capacity for SPIS | C9: ='INPUT_Business Conditions'!E54 -> 0.1 | D9: ='INPUT_Business Conditions'!F54 -> 0.1 | E9: 0 | F9: 0.9 | G9: 1
A10: 7 | B10: Awareness of solar PV and irrigation technologies | C10: ='INPUT_Business Conditions'!E61 -> 0.1 | D10: ='INPUT_Business Conditions'!F61 -> 0.09166666667 | E10: 0.008333333333 | F10: 0.9 | G10: 0.9166666667
A11: 8 | B11: Significance of agriculture in the local economy | C11: ='INPUT_Business Conditions'!E72 -> 0.1 | D11: ='INPUT_Business Conditions'!F72 -> 0.05 | E11: 0.05 | F11: 0.9 | G11: 0.5
A12: 9 | B12: Land use rights, ownership and tenure | C12: ='INPUT_Business Conditions'!E81 -> 0.1 | D12: ='INPUT_Business Conditions'!F81 -> 0.08333333333 | E12: 0.01666666667 | F12: 0.9 | G12: 0.8333333333
A13: 10 | B13: Transportation and communication infrastructure | C13: ='INPUT_Business Conditions'!E91 -> 0.1 | D13: ='INPUT_Business Conditions'!F91 -> 0.05 | E13: 0.05 | F13: 0.9 | G13: 0.5
C14: =SUM(C4:C13) -> 1 | D14: =SUM(D4:D13) -> 0.7733333333 | E14: =C14-D14 -> 0.2266666667
B21: GEOPHYSICAL Parameters
C22: Doughnut | D22: Pie
B23: Red Zone | C23: 30 | D23: =IF('INPUT_Pre-check'!T14=0,10, IF('INPUT_Pre-check'!T14=1,7, IF('INPUT_Pre-check'!T14=2,14, IF('INPUT_Pre-check'!T14=3,21, IF('INPUT_Pre-check'!T14=4,30, IF('INPUT_Pre-check'!T14=5,45, IF('INPUT_Pre-check'!T14=6,60, IF('INPUT_Pre-check'!T14=7,75, IF('INPUT_Pre-check'!T14=8,100,115))))))))) -> 100 | E23: Value
B24: Orange Zone | C24: 30 | D24: 1 | E24: Ticker
B25: Yellow Zone | C25: 30 | D25: =240-D23-D24 -> 139 | E25: Rest Value
B26: Green Zone | C26: 30
B27: Hidden Zone | C27: 120
B30: Relevance | C30: Business | D30: Geophysical | E30: Total
B31: ='Lists 2'!M2 -> Inconsequential | C31: =(COUNTIF('INPUT_Business Conditions'!$F$8:$F$102,Calculations!B31))/44 -> 0.9090909091 | D31: =(COUNTIF('INPUT_Geophysical Parameters'!$F$8:$F$11,Calculations!B31))/44 -> 0.09090909091 | E31: =SUM(C31:D31) -> 1
B32: ='Lists 2'!M3 -> Slightly important | C32: =(COUNTIF('INPUT_Business Conditions'!$F$8:$F$102,Calculations!B32))/44 -> 0 | D32: =(COUNTIF('INPUT_Geophysical Parameters'!$F$8:$F$11,Calculations!B32))/44 -> 0 | E32: =SUM(C32:D32) -> 0
B33: ='Lists 2'!M4 -> Important | C33: =(COUNTIF('INPUT_Business Conditions'!$F$8:$F$102,Calculations!B33))/44 -> 0 | D33: =(COUNTIF('INPUT_Geophysical Parameters'!$F$8:$F$11,Calculations!B33))/44 -> 0 | E33: =SUM(C33:D33) -> 0
B34: ='Lists 2'!M5 -> Very important | C34: =(COUNTIF('INPUT_Business Conditions'!$F$8:$F$102,Calculations!B34))/44 -> 0 | D34: =(COUNTIF('INPUT_Geophysical Parameters'!$F$8:$F$11,Calculations!B34))/44 -> 0 | E34: =SUM(C34:D34) -> 0
B35: ='Lists 2'!M6 -> Critical | C35: =(COUNTIF('INPUT_Business Conditions'!$F$8:$F$102,Calculations!B35))/44 -> 0 | D35: =(COUNTIF('INPUT_Geophysical Parameters'!$F$8:$F$11,Calculations!B35))/44 -> 0 | E35: =SUM(C35:D35) -> 0
C36: =SUM(C31:C35) -> 0.9090909091 | D36: =SUM(D31:D35) -> 0.09090909091 | E36: =SUM(E31:E35) -> 1

Sheet Lists (hidden)
A1: Countries | B1: List of possible* development agencies and multilateral organizations: | C1: List of possible* facilities and funds: | D1: List of possible* research centers and other NGOs: | E1: Rural MPI | F1: GNI per Capita | G1: pump manufacturers
A2: Afghanistan | B2: African Development Bank | C2: CTF (Clean Technology Fund) | D2: AAA (Adaptation of African Agriculture) | E2: 0.10 - 1.86 | F2: Low income ($1,005 or less) | G2: AllightSykes
A3: Albania | B3: CGIAR (Climate Change, Agriculture and Food Security) | C3: EcoMicro | D3: AGRA | E3: 1.87 - 8.80 | F3: Lower Middle Income ($1,006 to $3,955) | G3: Ebara
A4: Algeria | B4: DFID ( Department for International Development - United Kingdom) | C4: GEF (Global Environment Facility) | D4: Energy 4Impact | E4: 8.81 - 26.06 | F4: Upper Middle Income ($3,956 to $12,235) | G4: Flowserve
A5: American Samoa | B5: FAO (Food and Agriculture Organization) | C5: GPOBA (Global Partnershi on Output Based Aid) | D5: IFPRI (International Food Policy Research Institute) | E5: 26.07 - 48.54 | F5: High Income ($12.236 or more) | G5: Grundfos
A6: Andorra | B6: GACSA (Global Alliance For Climate-Smart Agriculture) | C6: ICBA | D6: Lutheran World Relief | E6: 48.55 - 68.29 | G6: Kirloskar Brothers Lt
A7: Angola | B7: GIZ (Deutsche Gesellschaft für Internationale Zusammenarbeit GmbH) | C7: ICBA (International Center for Biosaline Agriculture) | D7: The Practica Foundation | E7: 68.30 - 84.33 | G7: KSB
A8: Anguilla | B8: IFAD (International Fund for Agriculture Development) | E8: 84.34 - 96.90 | G8: Lorentz
A9: Antigua & Barbuda | B9: JICA (Japan International Cooperation Agency) | E9: No data | G9: Ruhrpumpen Group
A10: Argentina | B10: Nordic Development Fund | G10: Suzler Ltd
A11: Armenia | B11: OECD (Organisation for Economic Co-operation and Development) | G11: Weir Group
A12: Aruba | B12: OFID (OPEC Fund for International Development) | G12: Wilo SE
A13: Australia | B13: SIDA (Swedish International Development Cooperation Agency) | G13: Xylem
A14: Austria | B14: USAID
A15: Azerbaijan | B15: World Bank Group
A16: Bahamas, The | B16: World Food Programme
A17: Bahrain
A18: Bangladesh
A19: Barbados
A20: Belarus
A21: Belgium
A22: Belize
A23: Benin
A24: Bermuda
A25: Bhutan
A26: Bolivia
A27: Bosnia & Herzegovina
A28: Botswana
A29: Brazil
A30: British Virgin Is.
A31: Brunei
A32: Bulgaria
A33: Burkina Faso
A34: Burma
A35: Burundi
A36: Cambodia
A37: Cameroon
A38: Canada
A39: Cape Verde
A40: Cayman Islands
A41: Central African Rep.
A42: Chad
A43: Chile
A44: China
A45: Colombia
A46: Comoros
A47: Congo, Dem. Rep.
A48: Congo, Repub. of the
A49: Cook Islands
A50: Costa Rica
A51: Cote d'Ivoire
A52: Croatia
A53: Cuba
A54: Cyprus
A55: Czech Republic
A56: Denmark
A57: Djibouti
A58: Dominica
A59: Dominican Republic
A60: East Timor
A61: Ecuador
A62: Egypt
A63: El Salvador
A64: Equatorial Guinea
A65: Eritrea
A66: Estonia
A67: Ethiopia
A68: Faroe Islands
A69: Fiji
A70: Finland
A71: France
A72: French Guiana
A73: French Polynesia
A74: Gabon
A75: Gambia, The
A76: Gaza Strip
A77: Georgia
A78: Germany
A79: Ghana
A80: Gibraltar
A81: Greece
A82: Greenland
A83: Grenada
A84: Guadeloupe
A85: Guam
A86: Guatemala
A87: Guernsey
A88: Guinea
A89: Guinea-Bissau
A90: Guyana
A91: Haiti
A92: Honduras
A93: Hong Kong
A94: Hungary
A95: Iceland
A96: India
A97: Indonesia
A98: Iran
A99: Iraq
A100: Ireland
A101: Isle of Man
A102: Israel
A103: Italy
A104: Jamaica
A105: Japan
A106: Jersey
A107: Jordan
A108: Kazakhstan
A109: Kenya
A110: Kiribati
A111: Korea, North
A112: Korea, South
A113: Kuwait
A114: Kyrgyzstan
A115: Laos
A116: Latvia
A117: Lebanon
A118: Lesotho
A119: Liberia
A120: Libya
A121: Liechtenstein
A122: Lithuania
A123: Luxembourg
A124: Macau
A125: Macedonia
A126: Madagascar
A127: Malawi
A128: Malaysia
A129: Maldives
A130: Mali
A131: Malta
A132: Marshall Islands
A133: Martinique
A134: Mauritania
A135: Mauritius
A136: Mayotte
A137: Mexico
A138: Micronesia, Fed. St.
A139: Moldova
A140: Monaco
A141: Mongolia
A142: Montserrat
A143: Morocco
A144: Mozambique
A145: Namibia
A146: Nauru
A147: Nepal
A148: Netherlands
A149: Netherlands Antilles
A150: New Caledonia
A151: New Zealand
A152: Nicaragua
A153: Niger
A154: Nigeria
A155: N. Mariana Islands
A156: Norway
A157: Oman
A158: Pakistan
A159: Palau
A160: Panama
A161: Papua New Guinea
A162: Paraguay
A163: Peru
A164: Philippines
A165: Poland
A166: Portugal
A167: Puerto Rico
A168: Qatar
A169: Reunion
A170: Romania
A171: Russia
A172: Rwanda
A173: Saint Helena
A174: Saint Kitts & Nevis
A175: Saint Lucia
A176: St Pierre & Miquelon
A177: Saint Vincent and the Grenadines
A178: Samoa
A179: San Marino
A180: Sao Tome & Principe
A181: Saudi Arabia
A182: Senegal
A183: Serbia
A184: Seychelles
A185: Sierra Leone
A186: Singapore
A187: Slovakia
A188: Slovenia
A189: Solomon Islands
A190: Somalia
A191: South Africa
A192: Spain
A193: Sri Lanka
A194: Sudan
A195: Suriname
A196: Swaziland
A197: Sweden
A198: Switzerland
A199: Syria
A200: Taiwan
... 28 more rows

Sheet Lists 2 (hidden)
A1: Land Cover | B1: Suitability | C1: Weight Setting | D1: Weight | E1: Country | H1: Solar Ranges | J1: Groundwater Depth | K1: Weight | M1: Relevance | N1: Weight 1 | O1: Weight 2 | Q1: Ambient temperature | S1: Topography | T1: Weight | V1: Farming System | W1: Weight | Y1: Population Density | AA1: =Translate!C438 -> List of possible* development agencies and multilateral organizations: | AC1: =Translate!C454 -> List of possible* facilities and funds: | AE1: =Translate!C461 -> List of possible* research centers and other NGOs: | AG1: GNI per Capita | AH1: Weight | AJ1: Pump manufacturers
A2: =Translate!C288 -> Cropland, rainfed | B2: =Translate!$C$305 -> Highly Suitable | C2: =Translate!$C$359 -> Ignore | D2: 0 | E2: =Translate!C91 -> Select the country of Interest | H2: 0 - 948 | J2: =Translate!C385 -> Up to 7 m | K2: 1 | M2: =Translate!$C$360 -> Inconsequential | N2: 6 | O2: 6 | Q2: =Translate!C391 -> Below 1 °C | S2: =Translate!C393 -> Flat | T2: 1 | V2: =Translate!C396 -> Seasonal Crops | W2: 0.6 | Y2: <1 | AA2: =Translate!C439 -> African Development Bank | AC2: =Translate!C455 -> CTF (Clean Technology Fund) | AE2: =Translate!C462 -> AAA (Adaptation of African Agriculture) | AG2: =Translate!C477 -> Low income ($1,005 or less) | AH2: 1 | AJ2: AllightSykes
A3: =Translate!C289 -> Cropland irrigated or post-flooding | B3: =Translate!$C$305 -> Highly Suitable | C3: =Translate!$C$360 -> Inconsequential | D3: 2 | E3: =Translate!C92 -> Afghanistan | H3: 949 - 1094 | J3: =Translate!C386 -> 7 m - 25 m | K3: 0.8 | M3: =Translate!$C$361 -> Slightly important | N3: 5 | O3: 4 | Q3: =Translate!C392 -> 1 °C to 30 °C | S3: =Translate!C394 -> Moderate | T3: 0.8 | V3: =Translate!C397 -> Perennial Crops | W3: 0.8 | Y3: 1 - 5 | AA3: =Translate!C440 -> CGIAR (Consultative Group for International Agricultural Research) | AC3: =Translate!C456 -> EcoMicro | AE3: =Translate!C463 -> AGRA | AG3: =Translate!C478 -> Lower Middle Income ($1,006 to $3,955) | AH3: 2 | AJ3: Ebara
A4: =Translate!C290 -> Mosaic crop land with natural vegetation | B4: =Translate!$C$305 -> Highly Suitable | C4: =Translate!$C$361 -> Slightly important | D4: 4 | E4: =Translate!C93 -> Albania | H4: 1095 - 1460 | J4: =Translate!C387 -> 25 m - 50 m | K4: 0.6 | M4: =Translate!$C$362 -> Important | N4: 4 | O4: 2 | S4: =Translate!C395 -> Steep | T4: 0.6 | V4: =Translate!C398 -> Small Livestock | W4: 1 | Y4: 5 - 25 | AA4: =Translate!C441 -> DFID (Department for International Development - United Kingdom) | AC4: =Translate!C457 -> GEF (Global Environment Facility) | AE4: =Translate!C464 -> Energy 4Impact | AG4: =Translate!C479 -> Upper Middle Income ($3,956 to $12,235) | AH4: 4 | AJ4: Flowserve
A5: =Translate!C291 -> Light forest open (tree cover up to 40%) | B5: =Translate!$C$306 -> Moderately Suitable | C5: =Translate!$C$362 -> Important | D5: 6 | E5: =Translate!C94 -> Algeria | H5: =Translate!$C$309 -> Above 1460 | J5: =Translate!C388 -> 50 m - 100 m | K5: 0.1 | M5: =Translate!$C$363 -> Very important | N5: 3 | O5: 1 | V5: =Translate!C399 -> Large Livestock | W5: 0.9 | Y5: 25 - 250 | AA5: =Translate!C442 -> FAO (Food and Agriculture Organization) | AC5: =Translate!C458 -> GPRBA (Global Partnership for Results-Based Approaches) | AE5: =Translate!C465 -> IFPRI (International Food Policy Research Institute) | AG5: =Translate!C480 -> High Income ($12.236 or more) | AH5: 5 | AJ5: Grundfos
A6: =Translate!C292 -> Medium forest open to closed (tree cover above 40%) | B6: =Translate!$C$307 -> Marginally Suitable | C6: =Translate!$C$363 -> Very important | D6: 8 | E6: =Translate!C95 -> Andorra | J6: =Translate!C389 -> Beyond 100 m | K6: 0 | M6: =Translate!$C$364 -> Critical | N6: 2 | O6: 0 | V6: =Translate!C400 -> Seasonal and Perennial Crops | W6: 0.7 | Y6: 250 - 1000 | AA6: =Translate!C443 -> GACSA (Global Alliance For Climate-Smart Agriculture) | AC6: =Translate!C459 -> ICBA | AE6: =Translate!C466 -> Lutheran World Relief | AJ6: Kirloskar Brothers Lt
A7: =Translate!C293 -> Dense forest closed (tree cover above 40%) | B7: =Translate!$C$308 -> Not Suitable | C7: =Translate!$C$364 -> Critical | D7: 10 | E7: =Translate!C96 -> Angola | J7: =Translate!C390 -> Unknown | K7: 0 | V7: =Translate!C401 -> Livestock and Crops | W7: 0.7 | Y7: >1000 | AA7: =Translate!C444 -> GIZ (German Corporation for International Cooperation GmbH) | AC7: =Translate!C460 -> ICBA (International Center for Biosaline Agriculture) | AE7: =Translate!C467 -> The Practica Foundation | AJ7: KSB
A8: =Translate!C294 -> Shrubland | B8: =Translate!$C$306 -> Moderately Suitable | E8: =Translate!C97 -> Antigua and Barbuda | AA8: =Translate!C445 -> IFAD (International Fund for Agriculture Development) | AJ8: Lorentz
A9: =Translate!C295 -> Grassland | B9: =Translate!$C$306 -> Moderately Suitable | E9: =Translate!C98 -> Argentina | M9: for INPUT_Business Conditions | AA9: =Translate!C446 -> JICA (Japan International Cooperation Agency) | AJ9: Ruhrpumpen Group
A10: =Translate!C296 -> Lichens and mosses | B10: =Translate!$C$307 -> Marginally Suitable | E10: =Translate!C99 -> Armenia | K10: YES/NO | M10: Relevance | N10: Weight 1 | O10: Weight 3 | Q10: Relevance | V10: Outage frequency | W10: Weight | Y10: Population | AA10: =Translate!C447 -> Nordic Development Fund | AJ10: Suzler Ltd
A11: =Translate!C297 -> Semi arid sparse vegetation | B11: =Translate!$C$306 -> Moderately Suitable | E11: =Translate!C100 -> Australia | K11: =Translate!C427 -> Yes | M11: =Translate!$C$360 -> Inconsequential | N11: 6 | O11: 3 | Q11: =Translate!$C$362 -> Important | V11: =Translate!$C$533 -> Low | W11: 1 | Y11: =Translate!C581 -> Positive | AA11: =Translate!C448 -> OECD (Organisation for Economic Co-operation and Development) | AJ11: Weir Group
A12: =Translate!C298 -> Flood plains fresh water | B12: =Translate!$C$307 -> Marginally Suitable | E12: =Translate!C101 -> Austria | K12: =Translate!$C$428 -> No | M12: =Translate!$C$361 -> Slightly important | N12: 5 | O12: 2 | Q12: =Translate!$C$360 -> Inconsequential | V12: =Translate!$C$534 -> Regular | W12: 2 | Y12: =Translate!C582 -> Negative | AA12: =Translate!C449 -> OFID (OPEC Fund for International Development) | AJ12: Wilo SE
A13: =Translate!C299 -> Flood plains brackish water | B13: =Translate!$C$308 -> Not Suitable | E13: =Translate!C102 -> Azerbaijan | K13: =Translate!$C$429 -> Unknown | M13: =Translate!$C$362 -> Important | N13: 4 | O13: 1 | V13: =Translate!$C$535 -> High | W13: 4 | Y13: =Translate!C583 -> Unkown | AA13: =Translate!C450 -> SIDA (Swedish International Development Cooperation Agency) | AJ13: Xylem
A14: =Translate!C300 -> Urban areas | B14: =Translate!$C$308 -> Not Suitable | E14: =Translate!C103 -> Bahamas | M14: =Translate!$C$363 -> Very important | N14: 3 | O14: 1 | V14: =Translate!$C$536 -> Very High | W14: 5 | AA14: =Translate!C451 -> USAID (United States Agency for International Development)
A15: =Translate!C301 -> Bare areas (sand dunes, gravel plains, etc) | B15: =Translate!$C$307 -> Marginally Suitable | E15: =Translate!C104 -> Bahrain | M15: =Translate!$C$364 -> Critical | N15: 2 | O15: 0 | AA15: =Translate!C452 -> World Bank Group
A16: =Translate!C302 -> Water bodies | B16: =Translate!$C$308 -> Not Suitable | E16: =Translate!C105 -> Bangladesh | AA16: =Translate!C453 -> World Food Programme
A17: =Translate!C303 -> Permanent snow and ice | B17: =Translate!$C$308 -> Not Suitable | E17: =Translate!C106 -> Barbados | M17: Weight 1 | N17: Used for the formula corresponding to the scroe of groundwater depth
E18: =Translate!C107 -> Belarus | N18: Used for the formula corresponding to the score of topography
E19: =Translate!C108 -> Belgium | N19: Used for the formula corresponding to the score of farming systems
E20: =Translate!C109 -> Belize | M20: Weight 1, Weight 2 | N20: Used for the formula corresponding to the scroe of ambient temperature
E21: =Translate!C110 -> Benin | M21: Weight 1, Weight 3 | N21: Used for the formula corresponding to the scroe of organizations
E22: =Translate!C111 -> Bhutan
E23: =Translate!C112 -> Bolivia
E24: =Translate!C113 -> Bosnia and Herzegovina
E25: =Translate!C114 -> Botswana
E26: =Translate!C115 -> Brazil
E27: =Translate!C116 -> Brunei Darussalam
E28: =Translate!C117 -> Bulgaria
E29: =Translate!C118 -> Burkina Faso
E30: =Translate!C119 -> Burundi
E31: =Translate!C120 -> Cabo Verde
E32: =Translate!C121 -> Cambodia
E33: =Translate!C122 -> Cameroon
E34: =Translate!C123 -> Canada
E35: =Translate!C124 -> Central African Republic
E36: =Translate!C125 -> Chad
E37: =Translate!C126 -> Chile
E38: =Translate!C127 -> China
E39: =Translate!C128 -> Colombia
E40: =Translate!C129 -> Comoros
E41: =Translate!C130 -> Congo
E42: =Translate!C131 -> Cook Islands
E43: =Translate!C132 -> Costa Rica
E44: =Translate!C133 -> Côte d'Ivoire
E45: =Translate!C134 -> Croatia
E46: =Translate!C135 -> Cuba
E47: =Translate!C136 -> Cyprus
E48: =Translate!C137 -> Czechia
E49: =Translate!C138 -> Democratic People's Republic of Korea
E50: =Translate!C139 -> Democratic Republic of the Congo
E51: =Translate!C140 -> Denmark
E52: =Translate!C141 -> Djibouti
E53: =Translate!C142 -> Dominica
E54: =Translate!C143 -> Dominican Republic
E55: =Translate!C144 -> Ecuador
E56: =Translate!C145 -> Egypt
E57: =Translate!C146 -> El Salvador
E58: =Translate!C147 -> Equatorial Guinea
E59: =Translate!C148 -> Eritrea
E60: =Translate!C149 -> Estonia
E61: =Translate!C150 -> Eswatini
E62: =Translate!C151 -> Ethiopia
E63: =Translate!C152 -> Fiji
E64: =Translate!C153 -> Finland
E65: =Translate!C154 -> France
E66: =Translate!C155 -> Gabon
E67: =Translate!C156 -> Gambia
E68: =Translate!C157 -> Georgia
E69: =Translate!C158 -> Germany
E70: =Translate!C159 -> Ghana
E71: =Translate!C160 -> Greece
E72: =Translate!C161 -> Grenada
E73: =Translate!C162 -> Guatemala
E74: =Translate!C163 -> Guinea
E75: =Translate!C164 -> Guinea-Bissau
E76: =Translate!C165 -> Guyana
E77: =Translate!C166 -> Haiti
E78: =Translate!C167 -> Honduras
E79: =Translate!C168 -> Hungary
E80: =Translate!C169 -> Iceland
E81: =Translate!C170 -> India
E82: =Translate!C171 -> Indonesia
E83: =Translate!C172 -> Iran
E84: =Translate!C173 -> Iraq
E85: =Translate!C174 -> Ireland
E86: =Translate!C175 -> Israel
E87: =Translate!C176 -> Italy
E88: =Translate!C177 -> Jamaica
E89: =Translate!C178 -> Japan
E90: =Translate!C179 -> Jordan
E91: =Translate!C180 -> Kazakhstan
E92: =Translate!C181 -> Kenya
E93: =Translate!C182 -> Kiribati
E94: =Translate!C183 -> Kuwait
E95: =Translate!C184 -> Kyrgyzstan
E96: =Translate!C185 -> Lao People's Democratic Republic
E97: =Translate!C186 -> Latvia
E98: =Translate!C187 -> Lebanon
E99: =Translate!C188 -> Lesotho
E100: =Translate!C189 -> Liberia
E101: =Translate!C190 -> Libya
E102: =Translate!C191 -> Liechtenstein
E103: =Translate!C192 -> Lithuania
E104: =Translate!C193 -> Luxembourg
E105: =Translate!C194 -> Madagascar
E106: =Translate!C195 -> Malawi
E107: =Translate!C196 -> Malaysia
E108: =Translate!C197 -> Maldives
E109: =Translate!C198 -> Mali
E110: =Translate!C199 -> Malta
E111: =Translate!C200 -> Marshall Islands
E112: =Translate!C201 -> Mauritania
E113: =Translate!C202 -> Mauritius
E114: =Translate!C203 -> Mexico
E115: =Translate!C204 -> Micronesia
E116: =Translate!C205 -> Monaco
E117: =Translate!C206 -> Mongolia
E118: =Translate!C207 -> Montenegro
E119: =Translate!C208 -> Morocco
E120: =Translate!C209 -> Mozambique
E121: =Translate!C210 -> Myanmar
E122: =Translate!C211 -> Namibia
E123: =Translate!C212 -> Nauru
E124: =Translate!C213 -> Nepal
E125: =Translate!C214 -> Netherlands
E126: =Translate!C215 -> New Zealand
E127: =Translate!C216 -> Nicaragua
E128: =Translate!C217 -> Niger
E129: =Translate!C218 -> Nigeria
E130: =Translate!C219 -> North Macedonia
E131: =Translate!C220 -> Norway
E132: =Translate!C221 -> Oman
E133: =Translate!C222 -> Pakistan
E134: =Translate!C223 -> Palau
E135: =Translate!C224 -> Palestine
E136: =Translate!C225 -> Panama
E137: =Translate!C226 -> Papua New Guinea
E138: =Translate!C227 -> Paraguay
E139: =Translate!C228 -> Peru
E140: =Translate!C229 -> Philippines
E141: =Translate!C230 -> Poland
E142: =Translate!C231 -> Portugal
E143: =Translate!C232 -> Qatar
E144: =Translate!C233 -> Republic of Korea
E145: =Translate!C234 -> Republic of Moldova
E146: =Translate!C235 -> Romania
E147: =Translate!C236 -> Russian Federation
E148: =Translate!C237 -> Rwanda
E149: =Translate!C238 -> Saint Kitts and Nevis
E150: =Translate!C239 -> Saint Lucia
E151: =Translate!C240 -> Saint Vincent and the Grenadines
E152: =Translate!C241 -> Samoa
E153: =Translate!C242 -> San Marino
E154: =Translate!C243 -> Sao Tome and Principe
E155: =Translate!C244 -> Saudi Arabia
E156: =Translate!C245 -> Senegal
E157: =Translate!C246 -> Serbia
E158: =Translate!C247 -> Seychelles
E159: =Translate!C248 -> Sierra Leone
E160: =Translate!C249 -> Singapore
E161: =Translate!C250 -> Slovakia
E162: =Translate!C251 -> Slovenia
E163: =Translate!C252 -> Solomon Islands
E164: =Translate!C253 -> Somalia
E165: =Translate!C254 -> South Africa
E166: =Translate!C255 -> South Sudan
E167: =Translate!C256 -> Spain
E168: =Translate!C257 -> Sri Lanka
E169: =Translate!C258 -> Sudan
E170: =Translate!C259 -> Suriname
E171: =Translate!C260 -> Sweden
E172: =Translate!C261 -> Switzerland
E173: =Translate!C262 -> Syria
E174: =Translate!C263 -> Tajikistan
E175: =Translate!C264 -> Tanzania
E176: =Translate!C265 -> Thailand
E177: =Translate!C266 -> Timor-Leste
E178: =Translate!C267 -> Togo
E179: =Translate!C268 -> Tonga
E180: =Translate!C269 -> Trinidad and Tobago
E181: =Translate!C270 -> Tunisia
E182: =Translate!C271 -> Turkey
E183: =Translate!C272 -> Turkmenistan
E184: =Translate!C273 -> Tuvalu
E185: =Translate!C274 -> Uganda
E186: =Translate!C275 -> Ukraine
E187: =Translate!C276 -> United Arab Emirates
E188: =Translate!C277 -> United Kingdom
E189: =Translate!C278 -> United States of America
E190: =Translate!C279 -> Uruguay
E191: =Translate!C280 -> Uzbekistan
E192: =Translate!C281 -> Vanuatu
E193: =Translate!C282 -> Venezuela
E194: =Translate!C283 -> Viet Nam
E195: =Translate!C284 -> Yemen
E196: =Translate!C285 -> Zambia
E197: =Translate!C286 -> Zimbabwe
